Workbook

Sheet Relevés
K1: L | N1: R | Q1: W | R1: =Q4 -> 30.6 | AU1: BA
B2: Pression mini | E2: Pression maxi | H2: Température ressentie | K2: Température mini | N2: Température maxi | Q2: Vent en Km/h | X2: Pluie | AA2: Temps de pluie | AH2: Sonde Soleil
B3: mini | D3: heure | E3: maxi | G3: heure | H3: mini | J3: heure | K3: mini | M3: heure | N3: maxi | P3: heure | Q3: maxi | S3: Heure | U3: Moyenne | W3: mm | Y3: Heure | AH3: =$W$1450/60/24 -> 0.2152777778 | AI3: =$W$1450/60/24 -> 0.2152777778 | AV3: =W1450/60/24
Q4: =$Q$5+5 -> 30.6 | W4: =MAX($L$9:$L$1448) -> 0 | AA4: 0 à 7h | AC4: 7 à 12h | AE4: 12 à 19h | AG4: 19h à 24h | AH4: =W1450 -> 310 | AI4: =$W$1450/60/24 -> 0.2152777778 | AV4: =W1450
B5: =MIN(H9:H1448) -> 1018.9 | C5: =MIN(C8:C1447)/100 -> 0.61 | D5: =VLOOKUP($B5,$H$9:$R$1448,11,0) -> 00:20:00 | E5: =MAX(H9:H1448) -> 1021.7 | G5: =VLOOKUP($E5,$H$9:$R$1448,11,0) -> 10:33:00 | H5: =MIN($E$9:$E$1448) -> 8 | J5: =VLOOKUP($H5,$E$9:$R$1448,14,0) -> 07:17:00 | K5: =MIN($B$9:$B$1448) -> 8.9 | M5: =VLOOKUP($K$5,$B$9:$R$1448,17,0) -> 07:48:00 | N5: =MAX(B9:B1448) -> 16.3 | P5: =VLOOKUP($N5,$B$9:$R$1448,17,0) -> 13:05:00 | Q5: =MAX($F$9:$G$1448) -> 25.6 | S5: =VLOOKUP($Q5,$G$9:$R$1448,12,0) -> 11:54:00 | U5: =AVERAGE(G9:G1448) -> 6.082236025 | V5: Début | W5: =MAX($L$9:$L$1448) -> 0 | Y5: =V1450/60/24 -> 00:00:00 | AB5: =AA6+AC6 -> 00:00:00 | AF5: =AE6+AG6 -> 00:00:00
C6: =MAX(C9:C1448)/100 -> 0.91 | V6: Fin | AA6: =SUM(V9:V428)/60/24 -> 00:00:00 | AC6: =SUM(V429:V728)/60/24 -> 00:00:00 | AE6: =SUM(V729:V1148)/60/24 -> 00:00:00 | AG6: =SUM(V1148:V1448)/60/24 -> 00:00:00
W7: Soleil
B8: T° Ext | C8: H% Ext | D8: Rosée | E8: Ressentie | F8: Vent | G8: Rafale | H8: Pression | I8: Lux | J8: Uv | K8: Pluie 1h | L8: Jour | M8: Semaine | N8: Mois | O8: Année | P8: CH1 | Q8: CH2 | R8: Heures | S8: Date | T8: Maxi | U8: Graph | V8: Pluie | W8: Soleil
B9: 14.1 | C9: 86 | D9: 11.5 | E9: 13.5 | F9: 0 | G9: 0 | H9: 1019.2 | I9: -- | J9: -- | K9: 0 | L9: 0 | M9: 0 | N9: 40.1 | O9: 375.5 | P9: 12.2 | Q9: 12.3 | R9: 00:00:00 | S9: 20240415 | V9: =IF($K9>0,1,"") -> 
B10: 14.1 | C10: 86 | D10: 11.5 | E10: 13.5 | F10: 0 | G10: 0 | H10: 1019.1 | I10: -- | J10: -- | K10: 0 | L10: 0 | M10: 0 | N10: 40.1 | O10: 375.5 | P10: 12.2 | Q10: 12.3 | R10: 00:01:00 | V10: =IF($K10>0,1,"") ->  | Z10: Vues | AF10: Aide mémoire
B11: 14.1 | C11: 86 | D11: 11.5 | E11: 13.5 | F11: 0 | G11: 0 | H11: 1019.4 | I11: -- | J11: -- | K11: 0 | L11: 0 | M11: 0 | N11: 40.1 | O11: 375.5 | P11: 12.2 | Q11: 12.2 | R11: 00:02:00 | AF11: W | AG11: Pluie | AI11: =SOMME(K9:K1448)
B12: 14.1 | C12: 86 | D12: 11.5 | E12: 13.5 | F12: 0 | G12: 0 | H12: 1019.2 | I12: -- | J12: -- | K12: 0 | L12: 0 | M12: 0 | N12: 40.1 | O12: 375.5 | P12: 12.2 | Q12: 12.2 | R12: 00:03:00 | Y12: 2024-04-01 | Z12: 405 | AI12: '=$W$1450/60/24
B13: 14.1 | C13: 86 | D13: 11.5 | E13: 13.5 | F13: 0 | G13: 0 | H13: 1019.2 | I13: -- | J13: -- | K13: 0 | L13: 0 | M13: 0 | N13: 40.1 | O13: 375.5 | P13: 12.1 | Q13: 12.2 | R13: 00:04:00 | Y13: 2024-04-03 | Z13: 437 | AA13: =Z13-Z12 -> 32 | AI13: '=(U1450/60)/1440
B14: 14.1 | C14: 86 | D14: 11.4 | E14: 13.4 | F14: 0 | G14: 0 | H14: 1019.1 | I14: -- | J14: -- | K14: 0 | L14: 0 | M14: 0 | N14: 40.1 | O14: 375.5 | P14: 12.1 | Q14: 12.1 | R14: 00:05:00 | Y14: 2024-04-08 | Z14: 474 | AA14: =Z14-Z13 -> 37 | AG14: Commentaires | AI14: =SOMME(U9:U1448)
B15: 14.1 | C15: 86 | D15: 11.6 | E15: 13.4 | F15: 0 | G15: 0 | H15: 1019.3 | I15: -- | J15: -- | K15: 0 | L15: 0 | M15: 0 | N15: 40.1 | O15: 375.5 | P15: 12.1 | Q15: 12.1 | R15: 00:06:00 | Y15: 2024-04-14 | Z15: 505 | AA15: 31 | AG15: Soleil | AI15: =SOMME(W9:W1448)
B16: 14.1 | C16: 86 | D16: 11.6 | E16: 13.4 | F16: 0 | G16: 0 | H16: 1019 | I16: -- | J16: -- | K16: 0 | L16: 0 | M16: 0 | N16: 40.1 | O16: 375.5 | P16: 12.1 | Q16: 12.1 | R16: 00:07:00 | AF16: AH | AG16: Soleil | AI16: =W1450/60/24
B17: 14 | C17: 86 | D17: 11.5 | E17: 13.3 | F17: 0 | G17: 0 | H17: 1019.2 | I17: -- | J17: -- | K17: 0 | L17: 0 | M17: 0 | N17: 40.1 | O17: 375.5 | P17: 12 | Q17: 12.1 | R17: 00:08:00
B18: 14 | C18: 85 | D18: 11.5 | E18: 13.3 | F18: 1.4 | G18: 1.8 | H18: 1019.1 | I18: -- | J18: -- | K18: 0 | L18: 0 | M18: 0 | N18: 40.1 | O18: 375.5 | P18: 12 | Q18: 12.1 | R18: 00:09:00 | V18: =IF($K18>0,1,"") -> 
B19: 14 | C19: 85 | D19: 11.5 | E19: 13.3 | F19: 0 | G19: 0 | H19: 1019.1 | I19: -- | J19: -- | K19: 0 | L19: 0 | M19: 0 | N19: 40.1 | O19: 375.5 | P19: 12 | Q19: 12 | R19: 00:10:00 | V19: =IF($K19>0,1,"") ->  | AF19: Heures | AH19: Minutes | AP19: 13:19:00 | AT19: 13:19:00
B20: 14 | C20: 86 | D20: 11.5 | E20: 13.3 | F20: 1.1 | G20: 1.8 | H20: 1019.2 | I20: -- | J20: -- | K20: 0 | L20: 0 | M20: 0 | N20: 40.1 | O20: 375.5 | P20: 12 | Q20: 12 | R20: 00:11:00 | AG20: 1h | AH20: 60 | AP20: 10:45:00 | AT20: 02:45:00
B21: 14 | C21: 86 | D21: 11.4 | E21: 13.2 | F21: 1.4 | G21: 1.8 | H21: 1019.4 | I21: -- | J21: -- | K21: 0 | L21: 0 | M21: 0 | N21: 40.1 | O21: 375.5 | P21: 12 | Q21: 12 | R21: 00:12:00 | AG21: 2h | AH21: =60+AH20 -> 120
B22: 14 | C22: 86 | D22: 11.4 | E22: 13.2 | F22: 1.1 | G22: 1.8 | H22: 1019.2 | I22: -- | J22: -- | K22: 0 | L22: 0 | M22: 0 | N22: 40.1 | O22: 375.5 | P22: 12 | Q22: 12 | R22: 00:13:00 | AG22: 3h | AH22: =AH21+$AH$20 -> 180 | AP22: =AP19-AP20 -> 02:34:00 | AT22: =AT19+AT20 -> 16:04:00
B23: 13.9 | C23: 86 | D23: 11.4 | E23: 13.2 | F23: 2.2 | G23: 3.6 | H23: 1019.3 | I23: -- | J23: -- | K23: 0 | L23: 0 | M23: 0 | N23: 40.1 | O23: 375.5 | P23: 12 | Q23: 11.9 | R23: 00:14:00 | AG23: 4h | AH23: 240
B24: 13.9 | C24: 86 | D24: 11.4 | E24: 13.2 | F24: 3.2 | G24: 3.6 | H24: 1019.3 | I24: -- | J24: -- | K24: 0 | L24: 0 | M24: 0 | N24: 40.1 | O24: 375.5 | P24: 12 | Q24: 11.9 | R24: 00:15:00 | AG24: 5h | AH24: 300
B25: 13.9 | C25: 86 | D25: 11.4 | E25: 13.2 | F25: 3.6 | G25: 5.4 | H25: 1019.2 | I25: -- | J25: -- | K25: 0 | L25: 0 | M25: 0 | N25: 40.1 | O25: 375.5 | P25: 12 | Q25: 11.9 | R25: 00:16:00 | AG25: 6h | AH25: 360
B26: 13.8 | C26: 86 | D26: 11.3 | E26: 13.1 | F26: 2.2 | G26: 3.6 | H26: 1019.4 | I26: -- | J26: -- | K26: 0 | L26: 0 | M26: 0 | N26: 40.1 | O26: 375.5 | P26: 12 | Q26: 11.9 | R26: 00:17:00 | AG26: 7h | AH26: 420
B27: 13.8 | C27: 86 | D27: 11.3 | E27: 13.1 | F27: 3.2 | G27: 5.4 | H27: 1019.2 | I27: -- | J27: -- | K27: 0 | L27: 0 | M27: 0 | N27: 40.1 | O27: 375.5 | P27: 11.9 | Q27: 11.9 | R27: 00:18:00 | AG27: 8h | AH27: 480
B28: 13.8 | C28: 86 | D28: 11.3 | E28: 13.1 | F28: 1.8 | G28: 3.6 | H28: 1019.3 | I28: -- | J28: -- | K28: 0 | L28: 0 | M28: 0 | N28: 40.1 | O28: 375.5 | P28: 11.9 | Q28: 11.9 | R28: 00:19:00 | AG28: 9h | AH28: 540
B29: 13.8 | C29: 86 | D29: 11.3 | E29: 13.1 | F29: 0.7 | G29: 1.8 | H29: 1018.9 | I29: -- | J29: -- | K29: 0 | L29: 0 | M29: 0 | N29: 40.1 | O29: 375.5 | P29: 11.9 | Q29: 11.9 | R29: 00:20:00 | AG29: 10h | AH29: 600
B30: 13.8 | C30: 86 | D30: 11.3 | E30: 13.1 | F30: 3.6 | G30: 5.4 | H30: 1019.3 | I30: -- | J30: -- | K30: 0 | L30: 0 | M30: 0 | N30: 40.1 | O30: 375.5 | P30: 11.9 | Q30: 11.9 | R30: 00:21:00 | AG30: 11h | AH30: 660
B31: 13.8 | C31: 86 | D31: 11.3 | E31: 13.1 | F31: 1.4 | G31: 1.8 | H31: 1019.4 | I31: -- | J31: -- | K31: 0 | L31: 0 | M31: 0 | N31: 40.1 | O31: 375.5 | P31: 11.9 | Q31: 11.9 | R31: 00:22:00 | AG31: 12h | AH31: 720
B32: 13.8 | C32: 87 | D32: 11.3 | E32: 13.1 | F32: 2.2 | G32: 3.6 | H32: 1019.3 | I32: -- | J32: -- | K32: 0 | L32: 0 | M32: 0 | N32: 40.1 | O32: 375.5 | P32: 11.9 | Q32: 11.9 | R32: 00:23:00 | AG32: 13h | AH32: 780
B33: 13.8 | C33: 87 | D33: 11.3 | E33: 13.1 | F33: 0 | G33: 0 | H33: 1019.3 | I33: -- | J33: -- | K33: 0 | L33: 0 | M33: 0 | N33: 40.1 | O33: 375.5 | P33: 11.9 | Q33: 11.9 | R33: 00:24:00 | AG33: 14h | AH33: 840
B34: 13.8 | C34: 87 | D34: 11.3 | E34: 13.1 | F34: 1.1 | G34: 1.8 | H34: 1019.3 | I34: -- | J34: -- | K34: 0 | L34: 0 | M34: 0 | N34: 40.1 | O34: 375.5 | P34: 11.9 | Q34: 11.9 | R34: 00:25:00
B35: 13.7 | C35: 87 | D35: 11.3 | E35: 13.1 | F35: 1.1 | G35: 1.8 | H35: 1019.2 | I35: -- | J35: -- | K35: 0 | L35: 0 | M35: 0 | N35: 40.1 | O35: 375.5 | P35: 11.9 | Q35: 11.9 | R35: 00:26:00
B36: 13.7 | C36: 87 | D36: 11.3 | E36: 13.1 | F36: 0.4 | G36: 1.8 | H36: 1019.3 | I36: -- | J36: -- | K36: 0 | L36: 0 | M36: 0 | N36: 40.1 | O36: 375.5 | P36: 11.9 | Q36: 11.8 | R36: 00:27:00
B37: 13.7 | C37: 87 | D37: 11.5 | E37: 13.1 | F37: 1.1 | G37: 1.8 | H37: 1019.3 | I37: -- | J37: -- | K37: 0 | L37: 0 | M37: 0 | N37: 40.1 | O37: 375.5 | P37: 11.9 | Q37: 11.8 | R37: 00:28:00
B38: 13.7 | C38: 87 | D38: 11.5 | E38: 13.1 | F38: 1.1 | G38: 1.8 | H38: 1019.1 | I38: -- | J38: -- | K38: 0 | L38: 0 | M38: 0 | N38: 40.1 | O38: 375.5 | P38: 11.9 | Q38: 11.8 | R38: 00:29:00
B39: 13.7 | C39: 87 | D39: 11.5 | E39: 13.1 | F39: 0 | G39: 0 | H39: 1019 | I39: -- | J39: -- | K39: 0 | L39: 0 | M39: 0 | N39: 40.1 | O39: 375.5 | P39: 11.9 | Q39: 11.8 | R39: 00:30:00
B40: 13.6 | C40: 87 | D40: 11.5 | E40: 13.1 | F40: 2.9 | G40: 3.6 | H40: 1019.4 | I40: -- | J40: -- | K40: 0 | L40: 0 | M40: 0 | N40: 40.1 | O40: 375.5 | P40: 11.9 | Q40: 11.8 | R40: 00:31:00
B41: 13.6 | C41: 88 | D41: 11.5 | E41: 13.1 | F41: 1.4 | G41: 3.6 | H41: 1019.5 | I41: -- | J41: -- | K41: 0 | L41: 0 | M41: 0 | N41: 40.1 | O41: 375.5 | P41: 11.9 | Q41: 11.8 | R41: 00:32:00
B42: 13.6 | C42: 88 | D42: 11.5 | E42: 13.1 | F42: 2.2 | G42: 3.6 | H42: 1019.3 | I42: -- | J42: -- | K42: 0 | L42: 0 | M42: 0 | N42: 40.1 | O42: 375.5 | P42: 11.9 | Q42: 11.8 | R42: 00:33:00
B43: 13.6 | C43: 88 | D43: 11.6 | E43: 13.2 | F43: 4 | G43: 5.4 | H43: 1019.3 | I43: -- | J43: -- | K43: 0 | L43: 0 | M43: 0 | N43: 40.1 | O43: 375.5 | P43: 11.9 | Q43: 11.8 | R43: 00:34:00
B44: 13.6 | C44: 88 | D44: 11.6 | E44: 13.2 | F44: 1.1 | G44: 1.8 | H44: 1019.3 | I44: -- | J44: -- | K44: 0 | L44: 0 | M44: 0 | N44: 40.1 | O44: 375.5 | P44: 11.9 | Q44: 11.8 | R44: 00:35:00
B45: 13.6 | C45: 88 | D45: 11.5 | E45: 13.1 | F45: 3.2 | G45: 3.6 | H45: 1019.1 | I45: -- | J45: -- | K45: 0 | L45: 0 | M45: 0 | N45: 40.1 | O45: 375.5 | P45: 11.9 | Q45: 11.8 | R45: 00:36:00
B46: 13.6 | C46: 88 | D46: 11.5 | E46: 13.1 | F46: 1.8 | G46: 1.8 | H46: 1019.2 | I46: -- | J46: -- | K46: 0 | L46: 0 | M46: 0 | N46: 40.1 | O46: 375.5 | P46: 11.9 | Q46: 11.8 | R46: 00:37:00
B47: 13.6 | C47: 88 | D47: 11.6 | E47: 13.2 | F47: 2.9 | G47: 3.6 | H47: 1019.2 | I47: -- | J47: -- | K47: 0 | L47: 0 | M47: 0 | N47: 40.1 | O47: 375.5 | P47: 11.9 | Q47: 11.8 | R47: 00:38:00
B48: 13.6 | C48: 88 | D48: 11.5 | E48: 13.1 | F48: 4 | G48: 7.2 | H48: 1019.3 | I48: -- | J48: -- | K48: 0 | L48: 0 | M48: 0 | N48: 40.1 | O48: 375.5 | P48: 11.9 | Q48: 11.8 | R48: 00:39:00
B49: 13.5 | C49: 88 | D49: 11.5 | E49: 13.1 | F49: 4.7 | G49: 7.2 | H49: 1019.1 | I49: -- | J49: -- | K49: 0 | L49: 0 | M49: 0 | N49: 40.1 | O49: 375.5 | P49: 11.9 | Q49: 11.8 | R49: 00:40:00
B50: 13.5 | C50: 88 | D50: 11.5 | E50: 13.1 | F50: 1.4 | G50: 1.8 | H50: 1019.2 | I50: -- | J50: -- | K50: 0 | L50: 0 | M50: 0 | N50: 40.1 | O50: 375.5 | P50: 11.9 | Q50: 11.8 | R50: 00:41:00
B51: 13.5 | C51: 88 | D51: 11.5 | E51: 13.1 | F51: 2.9 | G51: 3.6 | H51: 1019.3 | I51: -- | J51: -- | K51: 0 | L51: 0 | M51: 0 | N51: 40.1 | O51: 375.5 | P51: 11.9 | Q51: 11.8 | R51: 00:42:00
B52: 13.5 | C52: 89 | D52: 11.5 | E52: 13.1 | F52: 1.8 | G52: 3.6 | H52: 1019.3 | I52: -- | J52: -- | K52: 0 | L52: 0 | M52: 0 | N52: 40.1 | O52: 375.5 | P52: 11.9 | Q52: 11.8 | R52: 00:43:00
B53: 13.5 | C53: 89 | D53: 11.5 | E53: 13.1 | F53: 4 | G53: 5.4 | H53: 1019.3 | I53: -- | J53: -- | K53: 0 | L53: 0 | M53: 0 | N53: 40.1 | O53: 375.5 | P53: 11.8 | Q53: 11.8 | R53: 00:44:00
B54: 13.5 | C54: 89 | D54: 11.5 | E54: 13.1 | F54: 2.9 | G54: 3.6 | H54: 1019.2 | I54: -- | J54: -- | K54: 0 | L54: 0 | M54: 0 | N54: 40.1 | O54: 375.5 | P54: 11.8 | Q54: 11.8 | R54: 00:45:00
B55: 13.5 | C55: 89 | D55: 11.5 | E55: 13.1 | F55: 6.8 | G55: 9.4 | H55: 1019.3 | I55: -- | J55: -- | K55: 0 | L55: 0 | M55: 0 | N55: 40.1 | O55: 375.5 | P55: 11.9 | Q55: 11.8 | R55: 00:46:00
B56: 13.4 | C56: 89 | D56: 11.5 | E56: 13.1 | F56: 2.2 | G56: 3.6 | H56: 1019.6 | I56: -- | J56: -- | K56: 0 | L56: 0 | M56: 0 | N56: 40.1 | O56: 375.5 | P56: 11.9 | Q56: 11.8 | R56: 00:47:00
B57: 13.4 | C57: 89 | D57: 11.7 | E57: 13.1 | F57: 2.5 | G57: 3.6 | H57: 1019.3 | I57: -- | J57: -- | K57: 0 | L57: 0 | M57: 0 | N57: 40.1 | O57: 375.5 | P57: 11.9 | Q57: 11.8 | R57: 00:48:00
B58: 13.4 | C58: 89 | D58: 11.7 | E58: 13.1 | F58: 1.4 | G58: 3.6 | H58: 1019.4 | I58: -- | J58: -- | K58: 0 | L58: 0 | M58: 0 | N58: 40.1 | O58: 375.5 | P58: 11.9 | Q58: 11.8 | R58: 00:49:00
B59: 13.4 | C59: 89 | D59: 11.7 | E59: 13.1 | F59: 6.5 | G59: 11.2 | H59: 1019.4 | I59: -- | J59: -- | K59: 0 | L59: 0 | M59: 0 | N59: 40.1 | O59: 375.5 | P59: 11.9 | Q59: 11.8 | R59: 00:50:00
B60: 13.4 | C60: 89 | D60: 11.7 | E60: 13.1 | F60: 5.4 | G60: 5.4 | H60: 1019.3 | I60: -- | J60: -- | K60: 0 | L60: 0 | M60: 0 | N60: 40.1 | O60: 375.5 | P60: 11.9 | Q60: 11.8 | R60: 00:51:00
B61: 13.4 | C61: 89 | D61: 11.7 | E61: 13.1 | F61: 4.7 | G61: 7.2 | H61: 1019.3 | I61: -- | J61: -- | K61: 0 | L61: 0 | M61: 0 | N61: 40.1 | O61: 375.5 | P61: 11.9 | Q61: 11.8 | R61: 00:52:00
B62: 13.4 | C62: 89 | D62: 11.7 | E62: 13.1 | F62: 2.9 | G62: 3.6 | H62: 1019.4 | I62: -- | J62: -- | K62: 0 | L62: 0 | M62: 0 | N62: 40.1 | O62: 375.5 | P62: 12 | Q62: 11.8 | R62: 00:53:00
B63: 13.4 | C63: 89 | D63: 11.7 | E63: 13.1 | F63: 5.4 | G63: 7.2 | H63: 1019.3 | I63: -- | J63: -- | K63: 0 | L63: 0 | M63: 0 | N63: 40.1 | O63: 375.5 | P63: 11.9 | Q63: 11.9 | R63: 00:54:00
B64: 13.4 | C64: 89 | D64: 11.7 | E64: 13.1 | F64: 1.4 | G64: 1.8 | H64: 1019.5 | I64: -- | J64: -- | K64: 0 | L64: 0 | M64: 0 | N64: 40.1 | O64: 375.5 | P64: 12 | Q64: 11.9 | R64: 00:55:00
B65: 13.4 | C65: 90 | D65: 11.8 | E65: 13.2 | F65: 5.4 | G65: 7.2 | H65: 1019.5 | I65: -- | J65: -- | K65: 0 | L65: 0 | M65: 0 | N65: 40.1 | O65: 375.5 | P65: 11.9 | Q65: 11.9 | R65: 00:56:00
B66: 13.4 | C66: 90 | D66: 11.7 | E66: 13.1 | F66: 4.7 | G66: 5.4 | H66: 1019.4 | I66: -- | J66: -- | K66: 0 | L66: 0 | M66: 0 | N66: 40.1 | O66: 375.5 | P66: 12 | Q66: 11.9 | R66: 00:57:00
B67: 13.4 | C67: 90 | D67: 11.7 | E67: 13.1 | F67: 4.7 | G67: 9.4 | H67: 1019.5 | I67: -- | J67: -- | K67: 0 | L67: 0 | M67: 0 | N67: 40.1 | O67: 375.5 | P67: 12 | Q67: 11.9 | R67: 00:58:00
B68: 13.4 | C68: 90 | D68: 11.7 | E68: 13.1 | F68: 9.7 | G68: 13 | H68: 1019.5 | I68: -- | J68: -- | K68: 0 | L68: 0 | M68: 0 | N68: 40.1 | O68: 375.5 | P68: 12 | Q68: 12 | R68: 00:59:00
B69: 13.3 | C69: 90 | D69: 11.7 | E69: 13.1 | F69: 5 | G69: 9.4 | H69: 1019.5 | I69: -- | J69: -- | K69: 0 | L69: 0 | M69: 0 | N69: 40.1 | O69: 375.5 | P69: 12 | Q69: 12 | R69: 01:00:00
B70: 13.3 | C70: 90 | D70: 11.7 | E70: 13.1 | F70: 5 | G70: 7.2 | H70: 1019.5 | I70: -- | J70: -- | K70: 0 | L70: 0 | M70: 0 | N70: 40.1 | O70: 375.5 | P70: 12 | Q70: 12 | R70: 01:01:00
B71: 13.3 | C71: 90 | D71: 11.7 | E71: 13.1 | F71: 7.9 | G71: 11.2 | H71: 1019.6 | I71: -- | J71: -- | K71: 0 | L71: 0 | M71: 0 | N71: 40.1 | O71: 375.5 | P71: 12.1 | Q71: 12 | R71: 01:02:00
B72: 13.3 | C72: 90 | D72: 11.7 | E72: 13.1 | F72: 3.2 | G72: 3.6 | H72: 1019.5 | I72: -- | J72: -- | K72: 0 | L72: 0 | M72: 0 | N72: 40.1 | O72: 375.5 | P72: 12.1 | Q72: 12 | R72: 01:03:00
B73: 13.3 | C73: 90 | D73: 11.7 | E73: 13.1 | F73: 2.9 | G73: 3.6 | H73: 1019.8 | I73: -- | J73: -- | K73: 0 | L73: 0 | M73: 0 | N73: 40.1 | O73: 375.5 | P73: 12.1 | Q73: 12 | R73: 01:04:00
B74: 13.3 | C74: 90 | D74: 11.7 | E74: 13.1 | F74: 3.6 | G74: 5.4 | H74: 1019.6 | I74: -- | J74: -- | K74: 0 | L74: 0 | M74: 0 | N74: 40.1 | O74: 375.5 | P74: 12.1 | Q74: 12 | R74: 01:05:00
B75: 13.3 | C75: 90 | D75: 11.7 | E75: 13.1 | F75: 2.9 | G75: 3.6 | H75: 1019.5 | I75: -- | J75: -- | K75: 0 | L75: 0 | M75: 0 | N75: 40.1 | O75: 375.5 | P75: 12.1 | Q75: 12.1 | R75: 01:06:00
B76: 13.3 | C76: 90 | D76: 11.7 | E76: 13.1 | F76: 3.6 | G76: 5.4 | H76: 1019.6 | I76: -- | J76: -- | K76: 0 | L76: 0 | M76: 0 | N76: 40.1 | O76: 375.5 | P76: 12.1 | Q76: 12 | R76: 01:07:00
B77: 13.3 | C77: 90 | D77: 11.7 | E77: 13.1 | F77: 4.3 | G77: 7.2 | H77: 1019.5 | I77: -- | J77: -- | K77: 0 | L77: 0 | M77: 0 | N77: 40.1 | O77: 375.5 | P77: 12.1 | Q77: 12 | R77: 01:08:00
B78: 13.3 | C78: 90 | D78: 11.7 | E78: 13.1 | F78: 6.1 | G78: 7.2 | H78: 1019.5 | I78: -- | J78: -- | K78: 0 | L78: 0 | M78: 0 | N78: 40.1 | O78: 375.5 | P78: 12.1 | Q78: 12 | R78: 01:09:00
B79: 13.3 | C79: 90 | D79: 11.7 | E79: 13.1 | F79: 3.2 | G79: 3.6 | H79: 1019.3 | I79: -- | J79: -- | K79: 0 | L79: 0 | M79: 0 | N79: 40.1 | O79: 375.5 | P79: 12.1 | Q79: 12 | R79: 01:10:00
B80: 13.3 | C80: 90 | D80: 11.7 | E80: 13.1 | F80: 7.2 | G80: 11.2 | H80: 1019.6 | I80: -- | J80: -- | K80: 0 | L80: 0 | M80: 0 | N80: 40.1 | O80: 375.5 | P80: 12.2 | Q80: 12 | R80: 01:11:00
B81: 13.3 | C81: 90 | D81: 11.7 | E81: 13.1 | F81: 2.9 | G81: 5.4 | H81: 1019.3 | I81: -- | J81: -- | K81: 0 | L81: 0 | M81: 0 | N81: 40.1 | O81: 375.5 | P81: 12.1 | Q81: 12.1 | R81: 01:12:00
B82: 13.3 | C82: 90 | D82: 11.7 | E82: 13.1 | F82: 4 | G82: 5.4 | H82: 1019.3 | I82: -- | J82: -- | K82: 0 | L82: 0 | M82: 0 | N82: 40.1 | O82: 375.5 | P82: 12.1 | Q82: 12 | R82: 01:13:00 | V82: =IF($K82>0,1,"") -> 
B83: 13.3 | C83: 90 | D83: 11.7 | E83: 13.1 | F83: 3.6 | G83: 5.4 | H83: 1019 | I83: -- | J83: -- | K83: 0 | L83: 0 | M83: 0 | N83: 40.1 | O83: 375.5 | P83: 12.1 | Q83: 12 | R83: 01:14:00
B84: 13.3 | C84: 90 | D84: 11.7 | E84: 13.1 | F84: 1.1 | G84: 1.8 | H84: 1019.4 | I84: -- | J84: -- | K84: 0 | L84: 0 | M84: 0 | N84: 40.1 | O84: 375.5 | P84: 12.1 | Q84: 12 | R84: 01:15:00
B85: 13.3 | C85: 90 | D85: 11.6 | E85: 13 | F85: 4 | G85: 5.4 | H85: 1019.6 | I85: -- | J85: -- | K85: 0 | L85: 0 | M85: 0 | N85: 40.1 | O85: 375.5 | P85: 12.1 | Q85: 12 | R85: 01:16:00
B86: 13.3 | C86: 90 | D86: 11.6 | E86: 13 | F86: 6.8 | G86: 9.4 | H86: 1019.3 | I86: -- | J86: -- | K86: 0 | L86: 0 | M86: 0 | N86: 40.1 | O86: 375.5 | P86: 12.2 | Q86: 12 | R86: 01:17:00
B87: 13.2 | C87: 90 | D87: 11.6 | E87: 13 | F87: 4 | G87: 5.4 | H87: 1019.4 | I87: -- | J87: -- | K87: 0 | L87: 0 | M87: 0 | N87: 40.1 | O87: 375.5 | P87: 12.1 | Q87: 12 | R87: 01:18:00
B88: 13.3 | C88: 90 | D88: 11.7 | E88: 13.1 | F88: 5 | G88: 5.4 | H88: 1019.4 | I88: -- | J88: -- | K88: 0 | L88: 0 | M88: 0 | N88: 40.1 | O88: 375.5 | P88: 12.1 | Q88: 12 | R88: 01:19:00
B89: 13.3 | C89: 90 | D89: 11.7 | E89: 13.1 | F89: 4.3 | G89: 7.2 | H89: 1019.5 | I89: -- | J89: -- | K89: 0 | L89: 0 | M89: 0 | N89: 40.1 | O89: 375.5 | P89: 12.1 | Q89: 12 | R89: 01:20:00
B90: 13.3 | C90: 90 | D90: 11.7 | E90: 13.1 | F90: 2.2 | G90: 3.6 | H90: 1019.5 | I90: -- | J90: -- | K90: 0 | L90: 0 | M90: 0 | N90: 40.1 | O90: 375.5 | P90: 12.1 | Q90: 12 | R90: 01:21:00
B91: 13.3 | C91: 90 | D91: 11.7 | E91: 13.1 | F91: 1.4 | G91: 3.6 | H91: 1019.6 | I91: -- | J91: -- | K91: 0 | L91: 0 | M91: 0 | N91: 40.1 | O91: 375.5 | P91: 12.1 | Q91: 12 | R91: 01:22:00
B92: 13.3 | C92: 90 | D92: 11.7 | E92: 13.1 | F92: 3.6 | G92: 5.4 | H92: 1019.6 | I92: -- | J92: -- | K92: 0 | L92: 0 | M92: 0 | N92: 40.1 | O92: 375.5 | P92: 12.1 | Q92: 12 | R92: 01:23:00
B93: 13.3 | C93: 90 | D93: 11.7 | E93: 13.1 | F93: 2.2 | G93: 3.6 | H93: 1019.5 | I93: -- | J93: -- | K93: 0 | L93: 0 | M93: 0 | N93: 40.1 | O93: 375.5 | P93: 12.1 | Q93: 12 | R93: 01:24:00
B94: 13.3 | C94: 90 | D94: 11.7 | E94: 13.1 | F94: 3.6 | G94: 5.4 | H94: 1019.5 | I94: -- | J94: -- | K94: 0 | L94: 0 | M94: 0 | N94: 40.1 | O94: 375.5 | P94: 12.1 | Q94: 12 | R94: 01:25:00
B95: 13.3 | C95: 90 | D95: 11.7 | E95: 13.1 | F95: 2.5 | G95: 5.4 | H95: 1019.6 | I95: -- | J95: -- | K95: 0 | L95: 0 | M95: 0 | N95: 40.1 | O95: 375.5 | P95: 12.1 | Q95: 12 | R95: 01:26:00
B96: 13.3 | C96: 90 | D96: 11.7 | E96: 13.1 | F96: 2.9 | G96: 5.4 | H96: 1019.7 | I96: -- | J96: -- | K96: 0 | L96: 0 | M96: 0 | N96: 40.1 | O96: 375.5 | P96: 12.1 | Q96: 12 | R96: 01:27:00
B97: 13.3 | C97: 90 | D97: 11.7 | E97: 13.1 | F97: 1.8 | G97: 1.8 | H97: 1019.4 | I97: -- | J97: -- | K97: 0 | L97: 0 | M97: 0 | N97: 40.1 | O97: 375.5 | P97: 12.1 | Q97: 12 | R97: 01:28:00
B98: 13.3 | C98: 90 | D98: 11.7 | E98: 13.1 | F98: 1.4 | G98: 1.8 | H98: 1019.4 | I98: -- | J98: -- | K98: 0 | L98: 0 | M98: 0 | N98: 40.1 | O98: 375.5 | P98: 12.1 | Q98: 12 | R98: 01:29:00
B99: 13.3 | C99: 90 | D99: 11.7 | E99: 13.1 | F99: 1.4 | G99: 1.8 | H99: 1019.7 | I99: -- | J99: -- | K99: 0 | L99: 0 | M99: 0 | N99: 40.1 | O99: 375.5 | P99: 12.1 | Q99: 12 | R99: 01:30:00
B100: 13.3 | C100: 90 | D100: 11.7 | E100: 13.1 | F100: 2.9 | G100: 3.6 | H100: 1019.5 | I100: -- | J100: -- | K100: 0 | L100: 0 | M100: 0 | N100: 40.1 | O100: 375.5 | P100: 12.1 | Q100: 11.9 | R100: 01:31:00
B101: 13.3 | C101: 90 | D101: 11.7 | E101: 13.1 | F101: 5.4 | G101: 7.2 | H101: 1019.6 | I101: -- | J101: -- | K101: 0 | L101: 0 | M101: 0 | N101: 40.1 | O101: 375.5 | P101: 12.1 | Q101: 11.9 | R101: 01:32:00
B102: 13.2 | C102: 90 | D102: 11.7 | E102: 13.1 | F102: 1.1 | G102: 1.8 | H102: 1019.5 | I102: -- | J102: -- | K102: 0 | L102: 0 | M102: 0 | N102: 40.1 | O102: 375.5 | P102: 12.1 | Q102: 11.9 | R102: 01:33:00
B103: 13.2 | C103: 90 | D103: 11.7 | E103: 13.1 | F103: 4.7 | G103: 9.4 | H103: 1019.7 | I103: -- | J103: -- | K103: 0 | L103: 0 | M103: 0 | N103: 40.1 | O103: 375.5 | P103: 12.1 | Q103: 11.9 | R103: 01:34:00
B104: 13.2 | C104: 90 | D104: 11.7 | E104: 13.1 | F104: 2.9 | G104: 5.4 | H104: 1019.5 | I104: -- | J104: -- | K104: 0 | L104: 0 | M104: 0 | N104: 40.1 | O104: 375.5 | P104: 12.1 | Q104: 11.9 | R104: 01:35:00
B105: 13.2 | C105: 90 | D105: 11.7 | E105: 13.1 | F105: 5 | G105: 7.2 | H105: 1019.4 | I105: -- | J105: -- | K105: 0 | L105: 0 | M105: 0 | N105: 40.1 | O105: 375.5 | P105: 12.1 | Q105: 11.9 | R105: 01:36:00
B106: 13.2 | C106: 91 | D106: 11.7 | E106: 13.1 | F106: 2.2 | G106: 3.6 | H106: 1019.5 | I106: -- | J106: -- | K106: 0 | L106: 0 | M106: 0 | N106: 40.1 | O106: 375.5 | P106: 12.1 | Q106: 11.9 | R106: 01:37:00
B107: 13.2 | C107: 90 | D107: 11.7 | E107: 13.1 | F107: 1.4 | G107: 1.8 | H107: 1019.6 | I107: -- | J107: -- | K107: 0 | L107: 0 | M107: 0 | N107: 40.1 | O107: 375.5 | P107: 12 | Q107: 11.9 | R107: 01:38:00
B108: 13.2 | C108: 91 | D108: 11.7 | E108: 13.1 | F108: 2.9 | G108: 5.4 | H108: 1019.6 | I108: -- | J108: -- | K108: 0 | L108: 0 | M108: 0 | N108: 40.1 | O108: 375.5 | P108: 12 | Q108: 11.9 | R108: 01:39:00
B109: 13.2 | C109: 91 | D109: 11.7 | E109: 13.1 | F109: 4 | G109: 5.4 | H109: 1019.6 | I109: -- | J109: -- | K109: 0 | L109: 0 | M109: 0 | N109: 40.1 | O109: 375.5 | P109: 12.1 | Q109: 11.9 | R109: 01:40:00
B110: 13.2 | C110: 91 | D110: 11.7 | E110: 13.1 | F110: 3.6 | G110: 7.2 | H110: 1019.7 | I110: -- | J110: -- | K110: 0 | L110: 0 | M110: 0 | N110: 40.1 | O110: 375.5 | P110: 12.1 | Q110: 11.9 | R110: 01:41:00
B111: 13.2 | C111: 91 | D111: 11.7 | E111: 13.1 | F111: 4.7 | G111: 7.2 | H111: 1019.8 | I111: -- | J111: -- | K111: 0 | L111: 0 | M111: 0 | N111: 40.1 | O111: 375.5 | P111: 12.1 | Q111: 11.9 | R111: 01:42:00
B112: 13.2 | C112: 91 | D112: 11.7 | E112: 13.1 | F112: 2.9 | G112: 5.4 | H112: 1019.8 | I112: -- | J112: -- | K112: 0 | L112: 0 | M112: 0 | N112: 40.1 | O112: 375.5 | P112: 12.1 | Q112: 11.9 | R112: 01:43:00
B113: 13.2 | C113: 91 | D113: 11.7 | E113: 13.1 | F113: 2.9 | G113: 5.4 | H113: 1019.4 | I113: -- | J113: -- | K113: 0 | L113: 0 | M113: 0 | N113: 40.1 | O113: 375.5 | P113: 12.1 | Q113: 11.9 | R113: 01:44:00
B114: 13.2 | C114: 91 | D114: 11.7 | E114: 13.1 | F114: 3.2 | G114: 7.2 | H114: 1019.7 | I114: -- | J114: -- | K114: 0 | L114: 0 | M114: 0 | N114: 40.1 | O114: 375.5 | P114: 12.1 | Q114: 11.9 | R114: 01:45:00
B115: 13.2 | C115: 91 | D115: 11.7 | E115: 13.1 | F115: 2.9 | G115: 5.4 | H115: 1019.6 | I115: -- | J115: -- | K115: 0 | L115: 0 | M115: 0 | N115: 40.1 | O115: 375.5 | P115: 12.1 | Q115: 11.9 | R115: 01:46:00
B116: 13.2 | C116: 91 | D116: 11.7 | E116: 13.1 | F116: 5.4 | G116: 7.2 | H116: 1019.6 | I116: -- | J116: -- | K116: 0 | L116: 0 | M116: 0 | N116: 40.1 | O116: 375.5 | P116: 12 | Q116: 12 | R116: 01:47:00
B117: 13.2 | C117: 91 | D117: 11.7 | E117: 13.1 | F117: 1.8 | G117: 1.8 | H117: 1019.4 | I117: -- | J117: -- | K117: 0 | L117: 0 | M117: 0 | N117: 40.1 | O117: 375.5 | P117: 12.1 | Q117: 11.9 | R117: 01:48:00
B118: 13.2 | C118: 91 | D118: 11.7 | E118: 13.1 | F118: 4 | G118: 5.4 | H118: 1019.4 | I118: -- | J118: -- | K118: 0 | L118: 0 | M118: 0 | N118: 40.1 | O118: 375.5 | P118: 12 | Q118: 12 | R118: 01:49:00
B119: 13.2 | C119: 91 | D119: 11.7 | E119: 13.1 | F119: 4.3 | G119: 5.4 | H119: 1019.4 | I119: -- | J119: -- | K119: 0 | L119: 0 | M119: 0 | N119: 40.1 | O119: 375.5 | P119: 12.1 | Q119: 12 | R119: 01:50:00
B120: 13.2 | C120: 91 | D120: 11.7 | E120: 13.1 | F120: 2.9 | G120: 5.4 | H120: 1019.6 | I120: -- | J120: -- | K120: 0 | L120: 0 | M120: 0 | N120: 40.1 | O120: 375.5 | P120: 12.1 | Q120: 12 | R120: 01:51:00
B121: 13.2 | C121: 91 | D121: 11.7 | E121: 13.1 | F121: 1.1 | G121: 1.8 | H121: 1019.3 | I121: -- | J121: -- | K121: 0 | L121: 0 | M121: 0 | N121: 40.1 | O121: 375.5 | P121: 12.1 | Q121: 12 | R121: 01:52:00
B122: 13.2 | C122: 91 | D122: 11.7 | E122: 13.1 | F122: 4.7 | G122: 7.2 | H122: 1019.5 | I122: -- | J122: -- | K122: 0 | L122: 0 | M122: 0 | N122: 40.1 | O122: 375.5 | P122: 12.1 | Q122: 12 | R122: 01:53:00
B123: 13.2 | C123: 90 | D123: 11.7 | E123: 13.1 | F123: 5.4 | G123: 7.2 | H123: 1019.6 | I123: -- | J123: -- | K123: 0 | L123: 0 | M123: 0 | N123: 40.1 | O123: 375.5 | P123: 12.1 | Q123: 12 | R123: 01:54:00
B124: 13.2 | C124: 90 | D124: 11.7 | E124: 13.1 | F124: 4.3 | G124: 5.4 | H124: 1019.4 | I124: -- | J124: -- | K124: 0 | L124: 0 | M124: 0 | N124: 40.1 | O124: 375.5 | P124: 12.1 | Q124: 12 | R124: 01:55:00
B125: 13.2 | C125: 90 | D125: 11.7 | E125: 13.1 | F125: 3.2 | G125: 7.2 | H125: 1019.4 | I125: -- | J125: -- | K125: 0 | L125: 0 | M125: 0 | N125: 40.1 | O125: 375.5 | P125: 12.1 | Q125: 12 | R125: 01:56:00
B126: 13.2 | C126: 90 | D126: 11.6 | E126: 13 | F126: 3.6 | G126: 5.4 | H126: 1019.3 | I126: -- | J126: -- | K126: 0 | L126: 0 | M126: 0 | N126: 40.1 | O126: 375.5 | P126: 12.1 | Q126: 12 | R126: 01:57:00
B127: 13.2 | C127: 90 | D127: 11.6 | E127: 13 | F127: 6.1 | G127: 7.2 | H127: 1019.4 | I127: -- | J127: -- | K127: 0 | L127: 0 | M127: 0 | N127: 40.1 | O127: 375.5 | P127: 12.1 | Q127: 12 | R127: 01:58:00
B128: 13.2 | C128: 90 | D128: 11.6 | E128: 13 | F128: 1.8 | G128: 1.8 | H128: 1019.3 | I128: -- | J128: -- | K128: 0 | L128: 0 | M128: 0 | N128: 40.1 | O128: 375.5 | P128: 12.1 | Q128: 11.9 | R128: 01:59:00
B129: 13.2 | C129: 90 | D129: 11.6 | E129: 13 | F129: 3.6 | G129: 7.2 | H129: 1019.4 | I129: -- | J129: -- | K129: 0 | L129: 0 | M129: 0 | N129: 40.1 | O129: 375.5 | P129: 12.1 | Q129: 12 | R129: 02:00:00
B130: 13.2 | C130: 90 | D130: 11.6 | E130: 13 | F130: 1.4 | G130: 3.6 | H130: 1019.3 | I130: -- | J130: -- | K130: 0 | L130: 0 | M130: 0 | N130: 40.1 | O130: 375.5 | P130: 12.1 | Q130: 12 | R130: 02:01:00
B131: 13.2 | C131: 90 | D131: 11.6 | E131: 13 | F131: 4 | G131: 9.4 | H131: 1019.7 | I131: -- | J131: -- | K131: 0 | L131: 0 | M131: 0 | N131: 40.1 | O131: 375.5 | P131: 12.1 | Q131: 11.9 | R131: 02:02:00
B132: 13.2 | C132: 90 | D132: 11.6 | E132: 13 | F132: 4 | G132: 5.4 | H132: 1019.8 | I132: -- | J132: -- | K132: 0 | L132: 0 | M132: 0 | N132: 40.1 | O132: 375.5 | P132: 12.1 | Q132: 11.9 | R132: 02:03:00
B133: 13.2 | C133: 90 | D133: 11.6 | E133: 13 | F133: 1.8 | G133: 1.8 | H133: 1019.5 | I133: -- | J133: -- | K133: 0 | L133: 0 | M133: 0 | N133: 40.1 | O133: 375.5 | P133: 12.1 | Q133: 11.9 | R133: 02:04:00
B134: 13.2 | C134: 90 | D134: 11.6 | E134: 13 | F134: 3.6 | G134: 5.4 | H134: 1019.6 | I134: -- | J134: -- | K134: 0 | L134: 0 | M134: 0 | N134: 40.1 | O134: 375.5 | P134: 12.1 | Q134: 11.9 | R134: 02:05:00
B135: 13.2 | C135: 90 | D135: 11.6 | E135: 13 | F135: 7.2 | G135: 9.4 | H135: 1019.7 | I135: -- | J135: -- | K135: 0 | L135: 0 | M135: 0 | N135: 40.1 | O135: 375.5 | P135: 12.1 | Q135: 11.9 | R135: 02:06:00
B136: 13.2 | C136: 90 | D136: 11.6 | E136: 13 | F136: 1.1 | G136: 1.8 | H136: 1019.6 | I136: -- | J136: -- | K136: 0 | L136: 0 | M136: 0 | N136: 40.1 | O136: 375.5 | P136: 12.1 | Q136: 11.9 | R136: 02:07:00
B137: 13.2 | C137: 90 | D137: 11.6 | E137: 13 | F137: 3.2 | G137: 3.6 | H137: 1019.5 | I137: -- | J137: -- | K137: 0 | L137: 0 | M137: 0 | N137: 40.1 | O137: 375.5 | P137: 12 | Q137: 11.9 | R137: 02:08:00
B138: 13.2 | C138: 90 | D138: 11.6 | E138: 13 | F138: 5.4 | G138: 7.2 | H138: 1019.6 | I138: -- | J138: -- | K138: 0 | L138: 0 | M138: 0 | N138: 40.1 | O138: 375.5 | P138: 12 | Q138: 11.9 | R138: 02:09:00
B139: 13.1 | C139: 90 | D139: 11.5 | E139: 12.9 | F139: 3.6 | G139: 5.4 | H139: 1019.6 | I139: -- | J139: -- | K139: 0 | L139: 0 | M139: 0 | N139: 40.1 | O139: 375.5 | P139: 12 | Q139: 11.9 | R139: 02:10:00
B140: 13.1 | C140: 90 | D140: 11.5 | E140: 12.9 | F140: 1.4 | G140: 3.6 | H140: 1019.5 | I140: -- | J140: -- | K140: 0 | L140: 0 | M140: 0 | N140: 40.1 | O140: 375.5 | P140: 12 | Q140: 11.9 | R140: 02:11:00
B141: 13.1 | C141: 90 | D141: 11.5 | E141: 12.9 | F141: 4 | G141: 5.4 | H141: 1019.6 | I141: -- | J141: -- | K141: 0 | L141: 0 | M141: 0 | N141: 40.1 | O141: 375.5 | P141: 12 | Q141: 11.9 | R141: 02:12:00
B142: 13.1 | C142: 90 | D142: 11.5 | E142: 12.9 | F142: 2.2 | G142: 3.6 | H142: 1019.6 | I142: -- | J142: -- | K142: 0 | L142: 0 | M142: 0 | N142: 40.1 | O142: 375.5 | P142: 12 | Q142: 11.8 | R142: 02:13:00
B143: 13.1 | C143: 90 | D143: 11.5 | E143: 12.9 | F143: 4.3 | G143: 7.2 | H143: 1019.5 | I143: -- | J143: -- | K143: 0 | L143: 0 | M143: 0 | N143: 40.1 | O143: 375.5 | P143: 12 | Q143: 11.8 | R143: 02:14:00
B144: 13.1 | C144: 90 | D144: 11.5 | E144: 12.9 | F144: 1.8 | G144: 1.8 | H144: 1019.5 | I144: -- | J144: -- | K144: 0 | L144: 0 | M144: 0 | N144: 40.1 | O144: 375.5 | P144: 12 | Q144: 11.8 | R144: 02:15:00
B145: 13.1 | C145: 90 | D145: 11.5 | E145: 12.9 | F145: 2.9 | G145: 3.6 | H145: 1019.6 | I145: -- | J145: -- | K145: 0 | L145: 0 | M145: 0 | N145: 40.1 | O145: 375.5 | P145: 11.9 | Q145: 11.8 | R145: 02:16:00
B146: 13.1 | C146: 90 | D146: 11.5 | E146: 12.9 | F146: 4.7 | G146: 7.2 | H146: 1019.6 | I146: -- | J146: -- | K146: 0 | L146: 0 | M146: 0 | N146: 40.1 | O146: 375.5 | P146: 11.9 | Q146: 11.8 | R146: 02:17:00 | V146: =IF($K146>0,1,"") -> 
B147: 13.1 | C147: 90 | D147: 11.5 | E147: 12.9 | F147: 1.8 | G147: 3.6 | H147: 1019.7 | I147: -- | J147: -- | K147: 0 | L147: 0 | M147: 0 | N147: 40.1 | O147: 375.5 | P147: 11.9 | Q147: 11.8 | R147: 02:18:00 | V147: =IF($K147>0,1,"") -> 
B148: 13.1 | C148: 90 | D148: 11.4 | E148: 12.8 | F148: 7.6 | G148: 11.2 | H148: 1019.4 | I148: -- | J148: -- | K148: 0 | L148: 0 | M148: 0 | N148: 40.1 | O148: 375.5 | P148: 11.9 | Q148: 11.8 | R148: 02:19:00
B149: 13.1 | C149: 90 | D149: 11.4 | E149: 12.8 | F149: 3.2 | G149: 3.6 | H149: 1019.7 | I149: -- | J149: -- | K149: 0 | L149: 0 | M149: 0 | N149: 40.1 | O149: 375.5 | P149: 11.9 | Q149: 11.8 | R149: 02:20:00
B150: 13.1 | C150: 90 | D150: 11.4 | E150: 12.8 | F150: 3.2 | G150: 5.4 | H150: 1019.5 | I150: -- | J150: -- | K150: 0 | L150: 0 | M150: 0 | N150: 40.1 | O150: 375.5 | P150: 11.9 | Q150: 11.8 | R150: 02:21:00
B151: 13.1 | C151: 90 | D151: 11.4 | E151: 12.8 | F151: 2.2 | G151: 3.6 | H151: 1019.6 | I151: -- | J151: -- | K151: 0 | L151: 0 | M151: 0 | N151: 40.1 | O151: 375.5 | P151: 11.9 | Q151: 11.7 | R151: 02:22:00
B152: 13.1 | C152: 90 | D152: 11.4 | E152: 12.8 | F152: 4 | G152: 7.2 | H152: 1019.5 | I152: -- | J152: -- | K152: 0 | L152: 0 | M152: 0 | N152: 40.1 | O152: 375.5 | P152: 11.9 | Q152: 11.7 | R152: 02:23:00
B153: 13 | C153: 90 | D153: 11.4 | E153: 12.8 | F153: 2.2 | G153: 5.4 | H153: 1019.6 | I153: -- | J153: -- | K153: 0 | L153: 0 | M153: 0 | N153: 40.1 | O153: 375.5 | P153: 11.9 | Q153: 11.7 | R153: 02:24:00
B154: 13 | C154: 90 | D154: 11.4 | E154: 12.8 | F154: 5.4 | G154: 7.2 | H154: 1019.6 | I154: -- | J154: -- | K154: 0 | L154: 0 | M154: 0 | N154: 40.1 | O154: 375.5 | P154: 11.8 | Q154: 11.7 | R154: 02:25:00
B155: 13 | C155: 90 | D155: 11.4 | E155: 12.8 | F155: 2.9 | G155: 5.4 | H155: 1019.7 | I155: -- | J155: -- | K155: 0 | L155: 0 | M155: 0 | N155: 40.1 | O155: 375.5 | P155: 11.8 | Q155: 11.7 | R155: 02:26:00
B156: 13 | C156: 90 | D156: 11.4 | E156: 12.8 | F156: 3.6 | G156: 3.6 | H156: 1019.7 | I156: -- | J156: -- | K156: 0 | L156: 0 | M156: 0 | N156: 40.1 | O156: 375.5 | P156: 11.8 | Q156: 11.7 | R156: 02:27:00
B157: 13 | C157: 90 | D157: 11.4 | E157: 12.8 | F157: 3.6 | G157: 5.4 | H157: 1019.4 | I157: -- | J157: -- | K157: 0 | L157: 0 | M157: 0 | N157: 40.1 | O157: 375.5 | P157: 11.8 | Q157: 11.7 | R157: 02:28:00
B158: 13 | C158: 90 | D158: 11.4 | E158: 12.8 | F158: 2.5 | G158: 3.6 | H158: 1019.5 | I158: -- | J158: -- | K158: 0 | L158: 0 | M158: 0 | N158: 40.1 | O158: 375.5 | P158: 11.8 | Q158: 11.7 | R158: 02:29:00
B159: 13 | C159: 90 | D159: 11.3 | E159: 12.7 | F159: 5.8 | G159: 7.2 | H159: 1019.3 | I159: -- | J159: -- | K159: 0 | L159: 0 | M159: 0 | N159: 40.1 | O159: 375.5 | P159: 11.8 | Q159: 11.6 | R159: 02:30:00
B160: 13 | C160: 90 | D160: 11.3 | E160: 12.7 | F160: 0.7 | G160: 1.8 | H160: 1019.6 | I160: -- | J160: -- | K160: 0 | L160: 0 | M160: 0 | N160: 40.1 | O160: 375.5 | P160: 11.8 | Q160: 11.6 | R160: 02:31:00
B161: 13 | C161: 90 | D161: 11.3 | E161: 12.7 | F161: 8.6 | G161: 9.4 | H161: 1019.6 | I161: -- | J161: -- | K161: 0 | L161: 0 | M161: 0 | N161: 40.1 | O161: 375.5 | P161: 11.8 | Q161: 11.6 | R161: 02:32:00
B162: 12.9 | C162: 90 | D162: 11.3 | E162: 12.7 | F162: 1.8 | G162: 3.6 | H162: 1019.6 | I162: -- | J162: -- | K162: 0 | L162: 0 | M162: 0 | N162: 40.1 | O162: 375.5 | P162: 11.8 | Q162: 11.6 | R162: 02:33:00
B163: 12.9 | C163: 90 | D163: 11.3 | E163: 12.7 | F163: 1.8 | G163: 5.4 | H163: 1019.6 | I163: -- | J163: -- | K163: 0 | L163: 0 | M163: 0 | N163: 40.1 | O163: 375.5 | P163: 11.7 | Q163: 11.6 | R163: 02:34:00
B164: 12.9 | C164: 90 | D164: 11.3 | E164: 12.7 | F164: 2.5 | G164: 5.4 | H164: 1019.7 | I164: -- | J164: -- | K164: 0 | L164: 0 | M164: 0 | N164: 40.1 | O164: 375.5 | P164: 11.7 | Q164: 11.6 | R164: 02:35:00
B165: 12.9 | C165: 90 | D165: 11.3 | E165: 12.7 | F165: 3.2 | G165: 5.4 | H165: 1019.6 | I165: -- | J165: -- | K165: 0 | L165: 0 | M165: 0 | N165: 40.1 | O165: 375.5 | P165: 11.7 | Q165: 11.6 | R165: 02:36:00
B166: 12.9 | C166: 90 | D166: 11.3 | E166: 12.7 | F166: 1.4 | G166: 1.8 | H166: 1019.8 | I166: -- | J166: -- | K166: 0 | L166: 0 | M166: 0 | N166: 40.1 | O166: 375.5 | P166: 11.7 | Q166: 11.6 | R166: 02:37:00
B167: 12.9 | C167: 90 | D167: 11.3 | E167: 12.7 | F167: 2.2 | G167: 3.6 | H167: 1019.6 | I167: -- | J167: -- | K167: 0 | L167: 0 | M167: 0 | N167: 40.1 | O167: 375.5 | P167: 11.7 | Q167: 11.6 | R167: 02:38:00
B168: 12.8 | C168: 90 | D168: 11.2 | E168: 12.6 | F168: 4.3 | G168: 5.4 | H168: 1019.7 | I168: -- | J168: -- | K168: 0 | L168: 0 | M168: 0 | N168: 40.1 | O168: 375.5 | P168: 11.7 | Q168: 11.5 | R168: 02:39:00
B169: 12.9 | C169: 90 | D169: 11.2 | E169: 12.6 | F169: 2.2 | G169: 3.6 | H169: 1019.6 | I169: -- | J169: -- | K169: 0 | L169: 0 | M169: 0 | N169: 40.1 | O169: 375.5 | P169: 11.6 | Q169: 11.5 | R169: 02:40:00
B170: 12.9 | C170: 91 | D170: 11.2 | E170: 12.6 | F170: 2.9 | G170: 3.6 | H170: 1019.7 | I170: -- | J170: -- | K170: 0 | L170: 0 | M170: 0 | N170: 40.1 | O170: 375.5 | P170: 11.6 | Q170: 11.5 | R170: 02:41:00
B171: 12.8 | C171: 91 | D171: 11.2 | E171: 12.6 | F171: 1.4 | G171: 3.6 | H171: 1019.6 | I171: -- | J171: -- | K171: 0 | L171: 0 | M171: 0 | N171: 40.1 | O171: 375.5 | P171: 11.6 | Q171: 11.5 | R171: 02:42:00
B172: 12.8 | C172: 91 | D172: 11.2 | E172: 12.6 | F172: 3.6 | G172: 3.6 | H172: 1019.4 | I172: -- | J172: -- | K172: 0 | L172: 0 | M172: 0 | N172: 40.1 | O172: 375.5 | P172: 11.7 | Q172: 11.5 | R172: 02:43:00
B173: 12.8 | C173: 91 | D173: 11.2 | E173: 12.6 | F173: 3.6 | G173: 5.4 | H173: 1019.5 | I173: -- | J173: -- | K173: 0 | L173: 0 | M173: 0 | N173: 40.1 | O173: 375.5 | P173: 11.6 | Q173: 11.5 | R173: 02:44:00
B174: 12.8 | C174: 91 | D174: 11.2 | E174: 12.6 | F174: 3.2 | G174: 3.6 | H174: 1019.6 | I174: -- | J174: -- | K174: 0 | L174: 0 | M174: 0 | N174: 40.1 | O174: 375.5 | P174: 11.6 | Q174: 11.5 | R174: 02:45:00
B175: 12.8 | C175: 91 | D175: 11.2 | E175: 12.6 | F175: 2.2 | G175: 3.6 | H175: 1019.6 | I175: -- | J175: -- | K175: 0 | L175: 0 | M175: 0 | N175: 40.1 | O175: 375.5 | P175: 11.6 | Q175: 11.5 | R175: 02:46:00
B176: 12.8 | C176: 91 | D176: 11.2 | E176: 12.6 | F176: 3.2 | G176: 3.6 | H176: 1019.6 | I176: -- | J176: -- | K176: 0 | L176: 0 | M176: 0 | N176: 40.1 | O176: 375.5 | P176: 11.6 | Q176: 11.4 | R176: 02:47:00
B177: 12.8 | C177: 91 | D177: 11.2 | E177: 12.6 | F177: 4.7 | G177: 7.2 | H177: 1019.5 | I177: -- | J177: -- | K177: 0 | L177: 0 | M177: 0 | N177: 40.1 | O177: 375.5 | P177: 11.6 | Q177: 11.4 | R177: 02:48:00
B178: 12.8 | C178: 91 | D178: 11.4 | E178: 12.6 | F178: 2.5 | G178: 3.6 | H178: 1019.7 | I178: -- | J178: -- | K178: 0 | L178: 0 | M178: 0 | N178: 40.1 | O178: 375.5 | P178: 11.6 | Q178: 11.4 | R178: 02:49:00
B179: 12.8 | C179: 91 | D179: 11.4 | E179: 12.6 | F179: 4 | G179: 7.2 | H179: 1019.7 | I179: -- | J179: -- | K179: 0 | L179: 0 | M179: 0 | N179: 40.1 | O179: 375.5 | P179: 11.6 | Q179: 11.5 | R179: 02:50:00
B180: 12.8 | C180: 91 | D180: 11.3 | E180: 12.5 | F180: 1.4 | G180: 1.8 | H180: 1019.6 | I180: -- | J180: -- | K180: 0 | L180: 0 | M180: 0 | N180: 40.1 | O180: 375.5 | P180: 11.6 | Q180: 11.4 | R180: 02:51:00
B181: 12.7 | C181: 91 | D181: 11.3 | E181: 12.5 | F181: 2.5 | G181: 3.6 | H181: 1019.7 | I181: -- | J181: -- | K181: 0 | L181: 0 | M181: 0 | N181: 40.1 | O181: 375.5 | P181: 11.6 | Q181: 11.4 | R181: 02:52:00
B182: 12.8 | C182: 91 | D182: 11.3 | E182: 12.5 | F182: 1.4 | G182: 3.6 | H182: 1019.8 | I182: -- | J182: -- | K182: 0 | L182: 0 | M182: 0 | N182: 40.1 | O182: 375.5 | P182: 11.5 | Q182: 11.4 | R182: 02:53:00
B183: 12.7 | C183: 91 | D183: 11.3 | E183: 12.5 | F183: 1.8 | G183: 1.8 | H183: 1019.7 | I183: -- | J183: -- | K183: 0 | L183: 0 | M183: 0 | N183: 40.1 | O183: 375.5 | P183: 11.6 | Q183: 11.4 | R183: 02:54:00
B184: 12.7 | C184: 91 | D184: 11.3 | E184: 12.5 | F184: 5.8 | G184: 9.4 | H184: 1019.5 | I184: -- | J184: -- | K184: 0 | L184: 0 | M184: 0 | N184: 40.1 | O184: 375.5 | P184: 11.5 | Q184: 11.4 | R184: 02:55:00
B185: 12.7 | C185: 91 | D185: 11.3 | E185: 12.5 | F185: 4 | G185: 5.4 | H185: 1019.5 | I185: -- | J185: -- | K185: 0 | L185: 0 | M185: 0 | N185: 40.1 | O185: 375.5 | P185: 11.5 | Q185: 11.4 | R185: 02:56:00
B186: 12.7 | C186: 91 | D186: 11.3 | E186: 12.5 | F186: 1.8 | G186: 3.6 | H186: 1019.5 | I186: -- | J186: -- | K186: 0 | L186: 0 | M186: 0 | N186: 40.1 | O186: 375.5 | P186: 11.5 | Q186: 11.4 | R186: 02:57:00
B187: 12.7 | C187: 91 | D187: 11.3 | E187: 12.5 | F187: 5 | G187: 7.2 | H187: 1019.5 | I187: -- | J187: -- | K187: 0 | L187: 0 | M187: 0 | N187: 40.1 | O187: 375.5 | P187: 11.5 | Q187: 11.4 | R187: 02:58:00
B188: 12.7 | C188: 91 | D188: 11.3 | E188: 12.5 | F188: 0 | G188: 0 | H188: 1019.7 | I188: -- | J188: -- | K188: 0 | L188: 0 | M188: 0 | N188: 40.1 | O188: 375.5 | P188: 11.5 | Q188: 11.4 | R188: 02:59:00
B189: 12.7 | C189: 91 | D189: 11.3 | E189: 12.5 | F189: 4.7 | G189: 5.4 | H189: 1019.4 | I189: -- | J189: -- | K189: 0 | L189: 0 | M189: 0 | N189: 40.1 | O189: 375.5 | P189: 11.5 | Q189: 11.4 | R189: 03:00:00
B190: 12.7 | C190: 91 | D190: 11.3 | E190: 12.5 | F190: 1.4 | G190: 1.8 | H190: 1019.4 | I190: -- | J190: -- | K190: 0 | L190: 0 | M190: 0 | N190: 40.1 | O190: 375.5 | P190: 11.5 | Q190: 11.4 | R190: 03:01:00
B191: 12.7 | C191: 91 | D191: 11.3 | E191: 12.5 | F191: 2.9 | G191: 3.6 | H191: 1019.5 | I191: -- | J191: -- | K191: 0 | L191: 0 | M191: 0 | N191: 40.1 | O191: 375.5 | P191: 11.5 | Q191: 11.4 | R191: 03:02:00
B192: 12.7 | C192: 91 | D192: 11.3 | E192: 12.5 | F192: 4.7 | G192: 5.4 | H192: 1019.4 | I192: -- | J192: -- | K192: 0 | L192: 0 | M192: 0 | N192: 40.1 | O192: 375.5 | P192: 11.5 | Q192: 11.4 | R192: 03:03:00
B193: 12.7 | C193: 91 | D193: 11.3 | E193: 12.5 | F193: 2.5 | G193: 3.6 | H193: 1019.8 | I193: -- | J193: -- | K193: 0 | L193: 0 | M193: 0 | N193: 40.1 | O193: 375.5 | P193: 11.5 | Q193: 11.4 | R193: 03:04:00
B194: 12.7 | C194: 91 | D194: 11.3 | E194: 12.5 | F194: 4.7 | G194: 7.2 | H194: 1019.8 | I194: -- | J194: -- | K194: 0 | L194: 0 | M194: 0 | N194: 40.1 | O194: 375.5 | P194: 11.5 | Q194: 11.4 | R194: 03:05:00
B195: 12.7 | C195: 91 | D195: 11.3 | E195: 12.5 | F195: 4 | G195: 5.4 | H195: 1019.7 | I195: -- | J195: -- | K195: 0 | L195: 0 | M195: 0 | N195: 40.1 | O195: 375.5 | P195: 11.5 | Q195: 11.4 | R195: 03:06:00
B196: 12.7 | C196: 91 | D196: 11.3 | E196: 12.5 | F196: 1.8 | G196: 1.8 | H196: 1019.7 | I196: -- | J196: -- | K196: 0 | L196: 0 | M196: 0 | N196: 40.1 | O196: 375.5 | P196: 11.5 | Q196: 11.4 | R196: 03:07:00
B197: 12.6 | C197: 91 | D197: 11.3 | E197: 12.5 | F197: 2.9 | G197: 3.6 | H197: 1019.8 | I197: -- | J197: -- | K197: 0 | L197: 0 | M197: 0 | N197: 40.1 | O197: 375.5 | P197: 11.5 | Q197: 11.4 | R197: 03:08:00
B198: 12.7 | C198: 91 | D198: 11.3 | E198: 12.5 | F198: 0.7 | G198: 1.8 | H198: 1019.8 | I198: -- | J198: -- | K198: 0 | L198: 0 | M198: 0 | N198: 40.1 | O198: 375.5 | P198: 11.5 | Q198: 11.4 | R198: 03:09:00
B199: 12.7 | C199: 91 | D199: 11.3 | E199: 12.5 | F199: 3.2 | G199: 3.6 | H199: 1019.9 | I199: -- | J199: -- | K199: 0 | L199: 0 | M199: 0 | N199: 40.1 | O199: 375.5 | P199: 11.5 | Q199: 11.5 | R199: 03:10:00
B200: 12.6 | C200: 91 | D200: 11.3 | E200: 12.5 | F200: 2.2 | G200: 3.6 | H200: 1019.9 | I200: -- | J200: -- | K200: 0 | L200: 0 | M200: 0 | N200: 40.1 | O200: 375.5 | P200: 11.5 | Q200: 11.4 | R200: 03:11:00
... 1136 more rows

Sheet Avril_2024
L1: 9.6 | R1: 12.4 | AJ1: =Relevés!$W$5 -> 0 | BE1: La Rochelle | BF1: https://www.meteociel.fr/climatologie/obs_villes.php?code2=7316&mois=1&annee=2024 | BQ1: Ephéméride | BR1: http://www.ephemeride.com/calendrier/solaire/19/horaires-du-soleil.html
AC2: =AC3+5 -> 21.6 | AD2: 2
AC3: 16.6 | AD3: 1 | AG3: =$C$5 -> Avril_2024 | AJ3: Hauteur de pluie en mm | AN3: Temps de précipitations par 1/4 de journée | AX3: =$C$5 -> Avril_2024 | BA3: Chaleur solaire | BE3: Marées | BF3: https://marine.meteoconsult.fr/meteo-marine/horaires-maree-la-tranche-sur-mer-1083-0.php
C5: Avril_2024 | F5: Mise à jour | H5: le | J5: Année | L5: =BI79 -> -4.6 | N5: =VLOOKUP($BI$79,$BI$81:$BJ$92,2,0) -> Janvier | P5: Année | R5: =BK79 -> 27.5 | T5: =VLOOKUP($BK$79,$BK$81:$BL$92,2,0) -> Mars | X5: =C5 -> Avril_2024 | AA5: =NOW() -> 2024-04-15T17:19:04.790 | AG5: Mise à jour | AJ5: =SUM($AJ$11:$AJ$70)+AJ1 -> 40.1 | AL5: =SUM($AL$11:$AL$70) -> 1.690972222 | AN5: =SUM(AN$11:AN$70) -> 0.6034722222 | AP5: =SUM(AP$11:AP$70) -> 0.4055555556 | AR5: =SUM(AR$11:AR$70) -> 0.4222222222 | AT5: =SUM(AT$11:AT$70) -> 0.2618055556 | AX5: Mise à jour | BA5: =SUM(BA$11:BA$72)+Relevés!AH3 -> 5 | BE5: T° de l'eau | BF5: https://fr.surf-forecast.com/breaks/La-Tranchesur-Mer/seatemp | BQ5: meteofloralies | BR5: https://www.wunderground.com/dashboard/pws/ILATRA6
C7: Températures | F7: =MIN(F$15:F70) -> 0 | H7: =VLOOKUP($F$7,$F$15:$Y$70,17,0) ->  | L7: =MIN($L$11:$L$70) -> 7.6 | N7: =VLOOKUP($L$7,$L$11:$Y$70,14,0) -> 2024-01-10 | R7: =MAX(R$11:R70) -> 27.5 | T7: =VLOOKUP($R$7,$R$11:$Y$70,8,0) -> 2024-01-13 | X7: Vitesse de l'année | AA7: Maxi du mois | AC7: Année | AG7: =TODAY() -> 2024-04-15 | AJ7: =VLOOKUP($AJ$9,$AJ$11:$AY$70,16,0) -> 2024-01-07 | AL7: =VLOOKUP($AL$9,$AL$11:$AY$70,14,0) -> 2024-01-07 | AN7: Pluie AM | AP7: Pluie AM | AR7: Pluie AP | AT7: Pluie AP | AX7: =TODAY() -> 2024-04-15 | BA7: =VLOOKUP($BA$9,$BA$11:$BE$70,5,0) -> 2024-01-13 | BE7: Observations | BF7: https://www.meteociel.fr/temps-reel/observation.php
F9: Ressentie | H9: =VLOOKUP($F$7,$F$15:$T$70,3,0) ->  | J9: Variation | L9: Mini | N9: =VLOOKUP($L$7,$L$11:$N$70,3,0) -> 07:55:00 | P9: Variation | R9: Maxi | T9: =VLOOKUP($R$7,$R$11:$T$70,3,0) -> 14:56:00 | X9: =BM79 -> 56.5 | Y9: Maxi | AA9: =MAX($AA$11:$AA$70) -> 41.7 | AC9: =VLOOKUP($AA$9,$AA$11:$AH$70,8,0) -> 2024-01-09 | AG9: =$BO$77+Relevés!W5 -> 375.5 | AH9: Année | AJ9: =MAX($AJ$11:$AJ$70) -> 10.2 | AL9: =MAX($AL$11:AL$70) -> 0.3479166667 | AN9: de 0 à 6h59 | AP9: 7h à 11h59 | AR9: 12h à 18h59 | AT9: 19h à 23h59 | AX9: Année | AY9: =$BQ$77+$BA$5 -> 6.594444444 | BA9: =MAX($BA$11:$BA$70) -> 0.4875 | BH9: Météofloralies | BI9: =SUBSTITUE(TEXTE(MAX(CNUM(SUBSTITUE($U$2;".";","));CNUM(SUBSTITUE($V$2;".";",")));"standard");",";".")
C11: =PROPER(TEXT(D11,"JJJJ")) -> Lundi | D11: 2024-01-01 | J11: =IF(OR(L9="",L11=""),"",IF(L11>L9,"»",IF(L11<L9,"¼","¹º"))) -> ¼ | L11: 9.4 | N11: 07:46:00 | P11: =IF(OR(R9="",R11=""),"",IF(R11>R9,"»",IF(R11<R9,"¼","¹º"))) -> ¼ | R11: 16.6 | T11: 12:51:00 | X11: =$C11 -> Lundi | Y11: =$D11 -> 2024-01-01 | AA11: 38.5 | AC11: 18:18:00 | AG11: =$C11 -> Lundi | AH11: =$D11 -> 2024-01-01 | AJ11: 7.1 | AL11: 06:07:00 | AN11: 02:27:00 | AP11: 01:24:00 | AR11: 02:16:00 | AT11: 00:00:00 | AX11: =$C11 -> Lundi | AY11: =$D11 -> 2024-01-01 | BA11: 08:25:00 | BD11: 15 | BE11: =D11 -> 2024-01-01 | BF11: =$C11 -> Lundi
C13: =PROPER(TEXT(D13,"JJJJ")) -> Mardi | D13: =$D11+1 -> 2024-01-02 | J13: =IF(OR(L11="",L13=""),"",IF(L13>L11,"»",IF(L13<L11,"¼","¹º"))) -> » | L13: 9.9 | N13: 01:05:00 | P13: =IF(OR(R11="",R13=""),"",IF(R13>R11,"»",IF(R13<R11,"¼","¹º"))) -> ¼ | R13: 15.1 | T13: 14:09:00 | X13: =$C13 -> Mardi | Y13: =$D13 -> 2024-01-02 | AA13: 34.5 | AC13: 01:09:00 | AG13: =$C13 -> Mardi | AH13: =$D13 -> 2024-01-02 | AJ13: 7.8 | AL13: 07:08:00 | AN13: 02:12:00 | AP13: 01:35:00 | AR13: 00:00:00 | AT13: 03:21:00 | AX13: =$C13 -> Mardi | AY13: =$D13 -> 2024-01-02 | BA13: 04:46:00 | BD13: 16 | BE13: =D13 -> 2024-01-02 | BF13: =$C13 -> Mardi
C15: =PROPER(TEXT(D15,"JJJJ")) -> Mercredi | D15: =D13+1 -> 2024-01-03 | J15: =IF(OR(L$1="",L15=""),"",IF(L15>L$1,"»",IF(L15<L$1,"¼","¹º"))) -> » | K15: =IF(OR(M$1="",M15=""),"",IF(M15>M$1,"»",IF(M15<M$1,"¼","¹º"))) ->  | L15: 11.6 | N15: 0 | P15: =IF(OR(R$1="",R15=""),"",IF(R15>R$1,"»",IF(R15<R$1,"¼","¹º"))) -> » | R15: 17.9 | T15: 0.6847222222 | X15: =$C15 -> Mercredi | Y15: =$D15 -> 2024-01-03 | AA15: 25.2 | AC15: 11:24:00 | AG15: =$C15 -> Mercredi | AH15: =$D15 -> 2024-01-03 | AJ15: 2.3 | AL15: 03:14:00 | AN15: 03:14:00 | AP15: 00:00:00 | AR15: 00:00:00 | AT15: 00:00:00 | AX15: =$C15 -> Mercredi | AY15: =$D15 -> 2024-01-03 | BA15: 07:06:00 | BD15: 9 | BE15: =D15 -> 2024-01-03 | BF15: =$C15 -> Mercredi
C17: =PROPER(TEXT(D17,"JJJJ")) -> Jeudi | D17: =D15+1 -> 2024-01-04 | J17: =IF(OR(L15="",L17=""),"",IF(L17>L15,"»",IF(L17<L15,"¼","¹º"))) -> » | K17: =IF(OR(M15="",M17=""),"",IF(M17>M15,"»",IF(M17<M15,"¼","¹º"))) ->  | L17: 13.2 | N17: 0.08472222222 | P17: =IF(OR(R15="",R17=""),"",IF(R17>R15,"»",IF(R17<R15,"¼","¹º"))) -> » | R17: 18.9 | T17: 0.5333333333 | X17: =$C17 -> Jeudi | Y17: =$D17 -> 2024-01-04 | AA17: 27 | AC17: 02:40:00 | AG17: =$C17 -> Jeudi | AH17: =$D17 -> 2024-01-04 | AJ17: 0.8 | AL17: 01:50:00 | AN17: 01:50:00 | AP17: 00:00:00 | AR17: 00:00:00 | AT17: 00:00:00 | AX17: =$C17 -> Jeudi | AY17: =$D17 -> 2024-01-04 | BA17: 08:27:00 | BD17: 11 | BE17: =D17 -> 2024-01-04 | BF17: =$C17 -> Jeudi
C19: =PROPER(TEXT(D19,"JJJJ")) -> Vendredi | D19: =$D17+1 -> 2024-01-05 | J19: =IF(OR(L17="",L19=""),"",IF(L19>L17,"»",IF(L19<L17,"¼","¹º"))) -> » | L19: 13.4 | N19: 0.06319444444 | P19: =IF(OR(R17="",R19=""),"",IF(R19>R17,"»",IF(R19<R17,"¼","¹º"))) -> » | R19: 21.6 | T19: 0.6993055556 | X19: =$C19 -> Vendredi | Y19: =$D19 -> 2024-01-05 | AA19: 25.2 | AC19: 00:29:00 | AG19: =$C19 -> Vendredi | AH19: =$D19 -> 2024-01-05 | AJ19: 3 | AL19: 04:10:00 | AN19: 00:00:00 | AP19: 04:10:00 | AR19: 00:00:00 | AT19: 00:00:00 | AX19: =$C19 -> Vendredi | AY19: =$D19 -> 2024-01-05 | BA19: 06:34:00 | BD19: 12 | BE19: =D19 -> 2024-01-05 | BF19: =$C19 -> Vendredi
C21: =PROPER(TEXT(D21,"JJJJ")) -> Samedi | D21: =$D19+1 -> 2024-01-06 | J21: =IF(OR(L19="",L21=""),"",IF(L21>L19,"»",IF(L21<L19,"¼","¹º"))) -> » | L21: 14.3 | N21: 0.99375 | P21: =IF(OR(R19="",R21=""),"",IF(R21>R19,"»",IF(R21<R19,"¼","¹º"))) -> ¼ | R21: 18.7 | T21: 0.7194444444 | X21: =$C21 -> Samedi | Y21: =$D21 -> 2024-01-06 | AA21: 34.9 | AC21: 05:06:00 | AG21: =$C21 -> Samedi | AH21: =$D21 -> 2024-01-06 | AJ21: 0.3 | AL21: 00:34:00 | AN21: 00:00:00 | AP21: 00:00:00 | AR21: 00:00:00 | AT21: 00:34:00 | AX21: =$C21 -> Samedi | AY21: =$D21 -> 2024-01-06 | BA21: 05:26:00 | BD21: 13 | BE21: =D21 -> 2024-01-06 | BF21: =$C21 -> Samedi
C23: =PROPER(TEXT(D23,"JJJJ")) -> Dimanche | D23: =$D21+1 -> 2024-01-07 | J23: =IF(OR(L21="",L23=""),"",IF(L23>L21,"»",IF(L23<L21,"¼","¹º"))) -> ¼ | L23: 12.2 | N23: 0.9006944444 | P23: =IF(OR(R21="",R23=""),"",IF(R23>R21,"»",IF(R23<R21,"¼","¹º"))) -> ¼ | R23: 16 | T23: 0.5340277778 | X23: =$C23 -> Dimanche | Y23: =$D23 -> 2024-01-07 | AA23: 11.2 | AC23: 14:08:00 | AG23: =$C23 -> Dimanche | AH23: =$D23 -> 2024-01-07 | AJ23: 10.2 | AL23: 08:21:00 | AN23: 02:05:00 | AP23: 00:00:00 | AR23: 04:38:00 | AT23: 01:39:00 | AX23: =$C23 -> Dimanche | AY23: =$D23 -> 2024-01-07 | BA23: 02:57:00 | BD23: 14 | BE23: =D23 -> 2024-01-07 | BF23: =$C23 -> Dimanche
C25: =PROPER(TEXT(D25,"JJJJ")) -> Lundi | D25: =$D23+1 -> 2024-01-08 | J25: =IF(OR(L23="",L25=""),"",IF(L25>L23,"»",IF(L25<L23,"¼","¹º"))) -> ¼ | L25: 10.6 | N25: 23:45:00 | P25: =IF(OR(R23="",R25=""),"",IF(R25>R23,"»",IF(R25<R23,"¼","¹º"))) -> » | R25: 20 | T25: 14:53:00 | X25: =$C25 -> Lundi | Y25: =$D25 -> 2024-01-08 | AA25: 34.5 | AC25: 23:17:00 | AG25: =$C25 -> Lundi | AH25: =$D25 -> 2024-01-08 | AJ25: 4.5 | AL25: 02:46:00 | AN25: 00:00:00 | AP25: 00:00:00 | AR25: 02:38:00 | AT25: 00:09:00 | AX25: =$C25 -> Lundi | AY25: =$D25 -> 2024-01-08 | BA25: 06:24:00 | BD25: 15 | BE25: =D25 -> 2024-01-08 | BF25: =$C25 -> Lundi
C27: =PROPER(TEXT(D27,"JJJJ")) -> Mardi | D27: =$D25+1 -> 2024-01-09 | J27: =IF(OR(L25="",L27=""),"",IF(L27>L25,"»",IF(L27<L25,"¼","¹º"))) -> ¼ | L27: 8.7 | N27: 07:31:00 | P27: =IF(OR(R25="",R27=""),"",IF(R27>R25,"»",IF(R27<R25,"¼","¹º"))) -> ¼ | R27: 16.5 | T27: 14:25:00 | X27: =$C27 -> Mardi | Y27: =$D27 -> 2024-01-09 | AA27: 41.7 | AC27: 04:00:00 | AG27: =$C27 -> Mardi | AH27: =$D27 -> 2024-01-09 | AJ27: 4.1 | AL27: 06:25:00 | AN27: 02:41:00 | AP27: 02:35:00 | AR27: 00:36:00 | AT27: 00:34:00 | AX27: =$C27 -> Mardi | AY27: =$D27 -> 2024-01-09 | BA27: 10:09:00 | BD27: 16 | BE27: =D27 -> 2024-01-09 | BF27: =$C27 -> Mardi
C29: =PROPER(TEXT(D29,"JJJJ")) -> Mercredi | D29: =$D27+1 -> 2024-01-10 | J29: =IF(OR(L27="",L29=""),"",IF(L29>L27,"»",IF(L29<L27,"¼","¹º"))) -> ¼ | L29: 7.6 | N29: 07:55:00 | P29: =IF(OR(R27="",R29=""),"",IF(R29>R27,"»",IF(R29<R27,"¼","¹º"))) -> » | R29: 19.3 | T29: 15:09:00 | X29: =$C29 -> Mercredi | Y29: =$D29 -> 2024-01-10 | AA29: 23.4 | AC29: 02:21:00 | AG29: =$C29 -> Mercredi | AH29: =$D29 -> 2024-01-10 | AJ29: 0 | AL29: 00:00:00 | AN29: 00:00:00 | AP29: 00:00:00 | AR29: 00:00:00 | AT29: 00:00:00 | AX29: =$C29 -> Mercredi | AY29: =$D29 -> 2024-01-10 | BA29: 11:06:00 | BE29: =D29 -> 2024-01-10 | BF29: =$C29 -> Mercredi | CH29: 0.3840277778
C31: =PROPER(TEXT(D31,"JJJJ")) -> Jeudi | D31: =$D29+1 -> 2024-01-11 | J31: =IF(OR(L29="",L31=""),"",IF(L31>L29,"»",IF(L31<L29,"¼","¹º"))) -> » | L31: 12.3 | N31: 23:48:00 | P31: =IF(OR(R29="",R31=""),"",IF(R31>R29,"»",IF(R31<R29,"¼","¹º"))) -> » | R31: 20.4 | T31: 16:15:00 | X31: =$C31 -> Jeudi | Y31: =$D31 -> 2024-01-11 | AA31: 16.6 | AC31: 17:23:00 | AG31: =$C31 -> Jeudi | AH31: =$D31 -> 2024-01-11 | AJ31: 0 | AL31: 00:00:00 | AN31: 00:00:00 | AP31: 00:00:00 | AR31: 00:00:00 | AT31: 00:00:00 | AX31: =$C31 -> Jeudi | AY31: =$D31 -> 2024-01-11 | BA31: 10:42:00 | BD31: 18 | BE31: =D31 -> 2024-01-11 | BF31: =$C31 -> Jeudi
C33: =PROPER(TEXT(D33,"JJJJ")) -> Vendredi | D33: =$D31+1 -> 2024-01-12 | J33: =IF(OR(L31="",L33=""),"",IF(L33>L31,"»",IF(L33<L31,"¼","¹º"))) -> ¼ | L33: 8.7 | N33: 07:33:00 | P33: =IF(OR(R31="",R33=""),"",IF(R33>R31,"»",IF(R33<R31,"¼","¹º"))) -> » | R33: 27.3 | T33: 16:13:00 | X33: =$C33 -> Vendredi | Y33: =$D33 -> 2024-01-12 | AA33: 13 | AC33: 10:52:00 | AG33: =$C33 -> Vendredi | AH33: =$D33 -> 2024-01-12 | AJ33: 0 | AL33: 00:00:00 | AN33: 00:00:00 | AP33: 00:00:00 | AR33: 00:00:00 | AT33: 00:00:00 | AX33: =$C33 -> Vendredi | AY33: =$D33 -> 2024-01-12 | BA33: 11:23:00 | BD33: 19 | BE33: =D33 -> 2024-01-12 | BF33: =$C33 -> Vendredi
C35: =PROPER(TEXT(D35,"JJJJ")) -> Samedi | D35: =$D33+1 -> 2024-01-13 | J35: =IF(OR(L33="",L35=""),"",IF(L35>L33,"»",IF(L35<L33,"¼","¹º"))) -> » | L35: 10.9 | N35: 07:30:00 | P35: =IF(OR(R33="",R35=""),"",IF(R35>R33,"»",IF(R35<R33,"¼","¹º"))) -> » | R35: 27.5 | T35: 14:56:00 | X35: =$C35 -> Samedi | Y35: =$D35 -> 2024-01-13 | AA35: 11.2 | AC35: 14:24:00 | AG35: =$C35 -> Samedi | AH35: =$D35 -> 2024-01-13 | AJ35: 0 | AL35: 00:00:00 | AN35: 00:00:00 | AP35: 00:00:00 | AR35: 00:00:00 | AT35: 00:00:00 | AX35: =$C35 -> Samedi | AY35: =$D35 -> 2024-01-13 | BA35: 11:42:00 | BD35: 20 | BE35: =D35 -> 2024-01-13 | BF35: =$C35 -> Samedi
C37: =PROPER(TEXT(D37,"JJJJ")) -> Dimanche | D37: =$D35+1 -> 2024-01-14 | J37: =IF(OR(L35="",L37=""),"",IF(L37>L35,"»",IF(L37<L35,"¼","¹º"))) -> ¼ | L37: 10.4 | N37: 07:42:00 | P37: =IF(OR(R35="",R37=""),"",IF(R37>R35,"»",IF(R37<R35,"¼","¹º"))) -> ¼ | R37: 26.7 | T37: 14:10:00 | X37: =$C37 -> Dimanche | Y37: =$D37 -> 2024-01-14 | AA37: 18.4 | AC37: 19:00:00 | AG37: =$C37 -> Dimanche | AH37: =$D37 -> 2024-01-14 | AJ37: 0 | AL37: 00:00:00 | AN37: 00:00:00 | AP37: 00:00:00 | AR37: 00:00:00 | AT37: 00:00:00 | AX37: =$C37 -> Dimanche | AY37: =$D37 -> 2024-01-14 | BA37: 09:43:00 | BD37: 21 | BE37: =D37 -> 2024-01-14 | BF37: =$C37 -> Dimanche
C39: =PROPER(TEXT(D39,"JJJJ")) -> Lundi | D39: =$D37+1 -> 2024-01-15 | J39: =IF(OR(L37="",L39=""),"",IF(L39>L37,"»",IF(L39<L37,"¼","¹º"))) ->  | P39: =IF(OR(R37="",R39=""),"",IF(R39>R37,"»",IF(R39<R37,"¼","¹º"))) ->  | X39: =$C39 -> Lundi | Y39: =$D39 -> 2024-01-15 | AG39: =$C39 -> Lundi | AH39: =$D39 -> 2024-01-15 | AX39: =$C39 -> Lundi | AY39: =$D39 -> 2024-01-15 | BD39: 22 | BE39: =D39 -> 2024-01-15 | BF39: =$C39 -> Lundi
C41: =PROPER(TEXT(D41,"JJJJ")) -> Mardi | D41: =$D39+1 -> 2024-01-16 | J41: =IF(OR(L39="",L41=""),"",IF(L41>L39,"»",IF(L41<L39,"¼","¹º"))) ->  | P41: =IF(OR(R39="",R41=""),"",IF(R41>R39,"»",IF(R41<R39,"¼","¹º"))) ->  | X41: =$C41 -> Mardi | Y41: =$D41 -> 2024-01-16 | AG41: =$C41 -> Mardi | AH41: =$D41 -> 2024-01-16 | AX41: =$C41 -> Mardi | AY41: =$D41 -> 2024-01-16 | BD41: 23 | BE41: =D41 -> 2024-01-16 | BF41: =$C41 -> Mardi
C43: =PROPER(TEXT(D43,"JJJJ")) -> Mercredi | D43: =$D41+1 -> 2024-01-17 | J43: =IF(OR(L41="",L43=""),"",IF(L43>L41,"»",IF(L43<L41,"¼","¹º"))) ->  | P43: =IF(OR(R41="",R43=""),"",IF(R43>R41,"»",IF(R43<R41,"¼","¹º"))) ->  | X43: =$C43 -> Mercredi | Y43: =$D43 -> 2024-01-17 | AG43: =$C43 -> Mercredi | AH43: =$D43 -> 2024-01-17 | AX43: =$C43 -> Mercredi | AY43: =$D43 -> 2024-01-17 | BD43: 24 | BE43: =D43 -> 2024-01-17 | BF43: =$C43 -> Mercredi
C45: =PROPER(TEXT(D45,"JJJJ")) -> Jeudi | D45: =$D43+1 -> 2024-01-18 | J45: =IF(OR(L43="",L45=""),"",IF(L45>L43,"»",IF(L45<L43,"¼","¹º"))) ->  | P45: =IF(OR(R43="",R45=""),"",IF(R45>R43,"»",IF(R45<R43,"¼","¹º"))) ->  | X45: =$C45 -> Jeudi | Y45: =$D45 -> 2024-01-18 | AG45: =$C45 -> Jeudi | AH45: =$D45 -> 2024-01-18 | AX45: =$C45 -> Jeudi | AY45: =$D45 -> 2024-01-18 | BD45: 22 | BE45: =D45 -> 2024-01-18 | BF45: =$C45 -> Jeudi
C47: =PROPER(TEXT(D47,"JJJJ")) -> Vendredi | D47: =$D45+1 -> 2024-01-19 | J47: =IF(OR(L45="",L47=""),"",IF(L47>L45,"»",IF(L47<L45,"¼","¹º"))) ->  | P47: =IF(OR(R45="",R47=""),"",IF(R47>R45,"»",IF(R47<R45,"¼","¹º"))) ->  | X47: =$C47 -> Vendredi | Y47: =$D47 -> 2024-01-19 | AG47: =$C47 -> Vendredi | AH47: =$D47 -> 2024-01-19 | AX47: =$C47 -> Vendredi | AY47: =$D47 -> 2024-01-19 | BD47: 23 | BE47: =D47 -> 2024-01-19 | BF47: =$C47 -> Vendredi
C49: =PROPER(TEXT(D49,"JJJJ")) -> Samedi | D49: =$D47+1 -> 2024-01-20 | J49: =IF(OR(L47="",L49=""),"",IF(L49>L47,"»",IF(L49<L47,"¼","¹º"))) ->  | P49: =IF(OR(R47="",R49=""),"",IF(R49>R47,"»",IF(R49<R47,"¼","¹º"))) ->  | X49: =$C49 -> Samedi | Y49: =$D49 -> 2024-01-20 | AG49: =$C49 -> Samedi | AH49: =$D49 -> 2024-01-20 | AX49: =$C49 -> Samedi | AY49: =$D49 -> 2024-01-20 | BD49: 20 | BE49: =D49 -> 2024-01-20 | BF49: =$C49 -> Samedi
C51: =PROPER(TEXT(D51,"JJJJ")) -> Dimanche | D51: =$D49+1 -> 2024-01-21 | J51: =IF(OR(L49="",L51=""),"",IF(L51>L49,"»",IF(L51<L49,"¼","¹º"))) ->  | P51: =IF(OR(R49="",R51=""),"",IF(R51>R49,"»",IF(R51<R49,"¼","¹º"))) ->  | X51: =$C51 -> Dimanche | Y51: =$D51 -> 2024-01-21 | AG51: =$C51 -> Dimanche | AH51: =$D51 -> 2024-01-21 | AX51: =$C51 -> Dimanche | AY51: =$D51 -> 2024-01-21 | BD51: 21 | BE51: =D51 -> 2024-01-21 | BF51: =$C51 -> Dimanche
C53: =PROPER(TEXT(D53,"JJJJ")) -> Lundi | D53: =$D51+1 -> 2024-01-22 | J53: =IF(OR(L51="",L53=""),"",IF(L53>L51,"»",IF(L53<L51,"¼","¹º"))) ->  | P53: =IF(OR(R51="",R53=""),"",IF(R53>R51,"»",IF(R53<R51,"¼","¹º"))) ->  | X53: =$C53 -> Lundi | Y53: =$D53 -> 2024-01-22 | AG53: =$C53 -> Lundi | AH53: =$D53 -> 2024-01-22 | AX53: =$C53 -> Lundi | AY53: =$D53 -> 2024-01-22 | BD53: 22 | BE53: =D53 -> 2024-01-22 | BF53: =$C53 -> Lundi
C55: =PROPER(TEXT(D55,"JJJJ")) -> Mardi | D55: =$D53+1 -> 2024-01-23 | J55: =IF(OR(L53="",L55=""),"",IF(L55>L53,"»",IF(L55<L53,"¼","¹º"))) ->  | P55: =IF(OR(R53="",R55=""),"",IF(R55>R53,"»",IF(R55<R53,"¼","¹º"))) ->  | X55: =$C55 -> Mardi | Y55: =$D55 -> 2024-01-23 | AG55: =$C55 -> Mardi | AH55: =$D55 -> 2024-01-23 | AX55: =$C55 -> Mardi | AY55: =$D55 -> 2024-01-23 | BD55: 23 | BE55: =D55 -> 2024-01-23 | BF55: =$C55 -> Mardi
C57: =PROPER(TEXT(D57,"JJJJ")) -> Mercredi | D57: =$D55+1 -> 2024-01-24 | J57: =IF(OR(L55="",L57=""),"",IF(L57>L55,"»",IF(L57<L55,"¼","¹º"))) ->  | P57: =IF(OR(R55="",R57=""),"",IF(R57>R55,"»",IF(R57<R55,"¼","¹º"))) ->  | X57: =$C57 -> Mercredi | Y57: =$D57 -> 2024-01-24 | AG57: =$C57 -> Mercredi | AH57: =$D57 -> 2024-01-24 | AX57: =$C57 -> Mercredi | AY57: =$D57 -> 2024-01-24 | BD57: 24 | BE57: =D57 -> 2024-01-24 | BF57: =$C57 -> Mercredi
C59: =PROPER(TEXT(D59,"JJJJ")) -> Jeudi | D59: =$D57+1 -> 2024-01-25 | J59: =IF(OR(L57="",L59=""),"",IF(L59>L57,"»",IF(L59<L57,"¼","¹º"))) ->  | P59: =IF(OR(R57="",R59=""),"",IF(R59>R57,"»",IF(R59<R57,"¼","¹º"))) ->  | X59: =$C59 -> Jeudi | Y59: =$D59 -> 2024-01-25 | AG59: =$C59 -> Jeudi | AH59: =$D59 -> 2024-01-25 | AX59: =$C59 -> Jeudi | AY59: =$D59 -> 2024-01-25 | BD59: 22 | BE59: =D59 -> 2024-01-25 | BF59: =$C59 -> Jeudi
C61: =PROPER(TEXT(D61,"JJJJ")) -> Vendredi | D61: =$D59+1 -> 2024-01-26 | J61: =IF(OR(L59="",L61=""),"",IF(L61>L59,"»",IF(L61<L59,"¼","¹º"))) ->  | P61: =IF(OR(R59="",R61=""),"",IF(R61>R59,"»",IF(R61<R59,"¼","¹º"))) ->  | X61: =$C61 -> Vendredi | Y61: =$D61 -> 2024-01-26 | AG61: =$C61 -> Vendredi | AH61: =$D61 -> 2024-01-26 | AX61: =$C61 -> Vendredi | AY61: =$D61 -> 2024-01-26 | BD61: 23 | BE61: =D61 -> 2024-01-26 | BF61: =$C61 -> Vendredi
C63: =PROPER(TEXT(D63,"JJJJ")) -> Samedi | D63: =$D61+1 -> 2024-01-27 | J63: =IF(OR(L61="",L63=""),"",IF(L63>L61,"»",IF(L63<L61,"¼","¹º"))) ->  | P63: =IF(OR(R61="",R63=""),"",IF(R63>R61,"»",IF(R63<R61,"¼","¹º"))) ->  | X63: =$C63 -> Samedi | Y63: =$D63 -> 2024-01-27 | AG63: =$C63 -> Samedi | AH63: =$D63 -> 2024-01-27 | AX63: =$C63 -> Samedi | AY63: =$D63 -> 2024-01-27 | BD63: 20 | BE63: =D63 -> 2024-01-27 | BF63: =$C63 -> Samedi
C65: =PROPER(TEXT(D65,"JJJJ")) -> Dimanche | D65: =$D63+1 -> 2024-01-28 | J65: =IF(OR(L63="",L65=""),"",IF(L65>L63,"»",IF(L65<L63,"¼","¹º"))) ->  | P65: =IF(OR(R63="",R65=""),"",IF(R65>R63,"»",IF(R65<R63,"¼","¹º"))) ->  | X65: =$C65 -> Dimanche | Y65: =$D65 -> 2024-01-28 | AG65: =$C65 -> Dimanche | AH65: =$D65 -> 2024-01-28 | AX65: =$C65 -> Dimanche | AY65: =$D65 -> 2024-01-28 | BD65: 22 | BE65: =D65 -> 2024-01-28 | BF65: =$C65 -> Dimanche
C67: =PROPER(TEXT(D67,"JJJJ")) -> Lundi | D67: =$D65+1 -> 2024-01-29 | J67: =IF(OR(L65="",L67=""),"",IF(L67>L65,"»",IF(L67<L65,"¼","¹º"))) ->  | P67: =IF(OR(R65="",R67=""),"",IF(R67>R65,"»",IF(R67<R65,"¼","¹º"))) ->  | X67: =$C67 -> Lundi | Y67: =$D67 -> 2024-01-29 | AG67: =$C67 -> Lundi | AH67: =$D67 -> 2024-01-29 | AX67: =$C67 -> Lundi | AY67: =$D67 -> 2024-01-29 | BD67: 23 | BE67: =D67 -> 2024-01-29 | BF67: =$C67 -> Lundi
C69: =PROPER(TEXT(D69,"JJJJ")) -> Mardi | D69: =$D67+1 -> 2024-01-30 | J69: =IF(OR(L67="",L69=""),"",IF(L69>L67,"»",IF(L69<L67,"¼","¹º"))) ->  | P69: =IF(OR(R67="",R69=""),"",IF(R69>R67,"»",IF(R69<R67,"¼","¹º"))) ->  | X69: =$C69 -> Mardi | Y69: =$D69 -> 2024-01-30 | AG69: =$C69 -> Mardi | AH69: =$D69 -> 2024-01-30 | AX69: =$C69 -> Mardi | AY69: =$D69 -> 2024-01-30 | BD69: 20 | BE69: =D69 -> 2024-01-30 | BF69: =$C69 -> Mardi
A73: 1
A75: 2 | BI75: J7 | BK75: N7 | BM75: X9 | BO75: AG5 | BQ75: AX5
A77: 3 | F77: 19.8 | H77: 0.7340277778 | BO77: =SUM(BO81:BO100) -> 375.5 | BQ77: =SUM(BQ81:BQ100) -> 1.594444444
A79: 4 | F79: 16.4 | H79: 0.5965277778 | BH79: T° Mini | BI79: =MIN(BI81:BI92) -> -4.6 | BJ79: T° Maxi | BK79: =MAX(BK81:BK100) -> 27.5 | BL79: Vent | BM79: =MAX(BM81:BM100) -> 56.5 | BN79: Pluie | BO79: =MAX(BO81:BO103) -> 149.8 | BP79: Soleil | BQ79: =MAX(BQ81:BQ103) -> 0.4875
A81: 5 | F81: 17.1 | H81: 0.6381944444 | N81: Web cam | BH81: Janvier | BI81: -4.6 | BJ81: Janvier | BK81: 14.6 | BL81: Janvier | BM81: 47.3 | BN81: Janvier | BO81: 79.1 | BP81: Janvier | BQ81: 0.3041666667
C82: https://pv.viewsurf.com/2094/La-Tranche-sur-mer-Embarcadere?i=NzYxMDp1bmRlZmluZWQ | BH82: Février | BI82: 3.2 | BJ82: Février | BK82: 16.2 | BL82: Février | BM82: 56.5 | BN82: Février | BO82: 149.8 | BP82: Février | BQ82: 0.3715277778
A83: 6 | F83: 18.3 | H83: 0.5548611111 | BH83: Mars | BI83: 1.9 | BJ83: Mars | BK83: 24.3 | BL83: Mars | BM83: 56.5 | BN83: Mars | BO83: 106.5 | BP83: Mars | BQ83: 0.43125
C84: https://pv.viewsurf.com/2010/La-Tranche-sur-mer-Plage-de-la-Terriere?i=NzM2NDp1bmRlZmluZWQ | BH84: Mars | BI84: =$L$7 -> 7.6 | BJ84: =BH84 -> Mars | BK84: =$R$7 -> 27.5 | BL84: =BH84 -> Mars | BM84: =$AA$9 -> 41.7 | BN84: =BH84 -> Mars | BO84: =$AJ$5 -> 40.1 | BP84: =BH84 -> Mars | BQ84: =$BA$9 -> 0.4875
A85: 7 | F85: 17.5 | H85: 0.1916666667 | BH85: Mai | BJ85: Mai | BL85: Mai | BN85: Mai | BP85: Mai
BH86: Juin | BJ86: Juin | BL86: Juin | BN86: Juin | BP86: Juin
A87: 8 | F87: 16.8 | H87: 0.6006944444 | BH87: Juillet | BJ87: =BH87 -> Juillet | BL87: =BH87 -> Juillet | BN87: =BH87 -> Juillet | BP87: =BH87 -> Juillet
BH88: Aout | BJ88: Aout | BL88: Aout | BN88: Aout | BP88: Aout
A89: 9 | F89: 15.9 | H89: 0.5493055556 | BH89: Septembre | BJ89: Septembre | BL89: Septembre | BN89: Septembre | BP89: Septembre
BH90: Octobre | BJ90: Octobre | BL90: Octobre | BN90: Octobre | BP90: Octobre
A91: 10 | F91: 16.5 | H91: 0.6479166667 | BH91: Novembre | BJ91: Novembre | BL91: Novembre | BN91: Novembre | BP91: Novembre
BH92: Novembre | BJ92: =BH92 -> Novembre | BL92: =BH92 -> Novembre | BN92: =BH92 -> Novembre | BP92: =BH92 -> Novembre
A93: 11 | F93: 16.5 | H93: 0.6479166667
A95: 12 | F95: 18.5 | H95: 0.6902777778
A97: 13 | F97: 17.7 | H97: 0.6006944444
A99: 14 | F99: 16.2 | H99: 0.31875
A101: 15 | F101: 16.2 | H101: 0.31875
A103: 16 | F103: 17.7 | H103: 0.5722222222
A105: 17 | F105: 16.7 | H105: 0.7770833333
A107: 18 | F107: 15.7 | H107: 0.5125
A109: 19 | F109: 14.5 | H109: 0.5958333333
A111: 20 | F111: 12.2 | H111: 0.6256944444
A113: 21 | F113: 14.1 | H113: 0.5680555556
A115: 22 | F115: 15.2 | H115: 0.4736111111
A117: 23 | F117: 13.7 | H117: 0.5222222222
A119: 24 | F119: 15 | H119: 0.5541666667
A121: 25 | F121: 15.2 | H121: 0.5263888889
A123: 26 | F123: 14.8 | H123: 0.5861111111
A125: 27 | F125: 12.8 | H125: 0.5423611111
A127: 28 | F127: 13.3 | H127: 0.7680555556
A129: 29 | F129: 13.4 | H129: 0.4993055556
A131: 30 | F131: 13.3 | H131: 0.5583333333
A133: 31 | F133: 9.2 | H133: 0.6354166667
F135: 6.7 | H135: 0.5486111111
F137: 6.4 | H137: 0.6354166667
F139: 5.1 | H139: 0.6520833333
F141: 0
F143: 6.7 | H143: 0.5854166667
F145: 6.7 | H145: 0.5854166667
F147: 6.7 | H147: 0.5854166667
F149: 8.2 | H149: 0.6319444444
F151: 5.8 | H151: 0.5805555556
F153: 7.5 | H153: 0.5625
F155: 3.8 | H155: 0.6173611111
F157: 4.9
F159: 4.8 | H159: 0.6381944444
F161: 4.2 | H161: 0.5826388889
F163: 3 | H163: 0.69375
F165: 5.5 | H165: 0.9909722222
F167: 13.4 | H167: 0.6340277778
F169: 4.8 | H169: 0.5423611111
F171: 5.7 | H171: 0.6090277778
F173: 2.4 | H173: 0.6277777778
F175: 9.3 | H175: 0.7756944444
F177: 11.7 | H177: 0.7215277778
F179: 12.5 | H179: 0.6736111111
F181: 12.6 | H181: 0.58125
F183: 13.1 | H183: 0.7347222222
F185: 13.3 | H185: 0.3576388889
F187: 11.6 | H187: 0.7347222222
F189: 13.5 | H189: 0.6291666667
F191: 12 | H191: 0.6319444444
F193: 12 | H193: 0.6319444444
F195: 10.8 | H195: 0.9895833333
F197: 12.7 | H197: 0.7090277778
F199: 12.7 | H199: 0.7090277778
F201: 11.9 | H201: 0.03125
F203: 14.4 | H203: 0.8979166667
F205: 14.9 | H205: 0.8916666667
F207: 15 | H207: 0.6805555556
F209: 6.2 | H209: 0.6055555556
F211: 1.8 | H211: 0.5333333333
F213: 3.7 | H213: 0.6201388889
F215: 3.7 | H215: 0.5833333333
F217: 3.5 | H217: 0.64375
F219: 7.1 | H219: 0.7041666667
F221: 6.8 | H221: 0.6166666667
F223: 7
F225: 5.3
F227: 8.3 | H227: 0.99375
F229: 10.5 | H229: 0.5916666667
F231: 11 | H231: 0.5395833333
F233: 9.7 | H233: 0.6666666667
F235: 10.3 | H235: 0.6118055556
F237: 12.5 | H237: 0.6027777778
F239: 8.9 | H239: 0.6548611111
F241: 7.7 | H241: 0.6236111111
F243: 10.7 | H243: 0.6194444444
F245: 8.4 | H245: 0.6291666667
F247: 10.8 | H247: 0.6402777778
F249: 12.5 | H249: 0.6284722222
F251: 11.8 | H251: 0.7104166667
F253: 12.9 | H253: 0.6423611111
F255: 12.9 | H255: 0.6423611111
F257: 12.6 | H257: 0.5694444444
F259: 13.8 | H259: 0.6131944444
F261: 12.1 | H261: 0.4833333333
F263: 12.1 | H263: 0.4833333333
F265: 13.6 | H265: 0.64375

Sheet Mini-Maxi
A1: =Avril_2024!C5 -> Avril_2024
E2: =NOW() -> 2024-04-15T17:19:04.790
D3: Pluie Maxi Jour et total mois | G3: Températures Mini et Maxi | I3: =I1-940 -> -940
F4: Vent maxi | I4: 3
I5: =I2-I3-I4 -> 937
A6: Jour | B6: Mois | D6: __200
D7: __180 | E7: =INDIRECT($A$1&"!AA9") -> 1900-02-10T16:48:00 | I7: =Avril_2024!L7 -> 7.6
D8: __160 | E8: 132 | I8: 145
A9: =INDIRECT($A$1&"!$AJ5") -> 40.1 | D9: __140 | E9: =INDIRECT($A$1&"!AA9") -> 41.7 | I9: =I7-940 -> -932.4
A10: 200 | B10: 200 | D10: __120 | E10: 2 | I10: 3
A11: =100*(1-(A9/A10)) -> 79.95 | B11: =100*(1-(B9/B10)) -> 100 | D11: __100 | E11: =E8-E9-E10 -> 88.3 | I11: =I8-I9-I10 -> 1074.4
A12: =20*A11/100 -> 15.99 | B12: =20*B11/100 -> 20 | D12: __80 | F12: Soleil maxi
A13: 17 | B13: 28 | D13: __60
A14: =(A10/100)*(1+(2*A10/100))/2 -> 5 | B14: =(B10/100)*(1+(2*B10/100))/2 -> 5 | D14: __40 | I14: 22:00:00
D15: _20 | I15: 00:00:00
A16: =INDIRECT($A1&"!$AK9") -> 0 | I16: =Avril_2024!$BA$9 -> 11:42:00
A17: =INDIRECT($A$1&"!$Ak9") -> 0 | I17: =I14-I16 -> 10:18:00
G21: =Avril_2024!N7 -> 2024-01-10 | H21: =Avril_2024!T7 -> 2024-01-13
F26: =Avril_2024!$BA$9 -> 11:42:00

Sheet Heures
A1: =Avril_2024!C5 -> Avril_2024
B3: Jours de pluie + de 4mm | E3: Jours de soleil + de 4h
A9: 31 | D9: 31 | F9: 31
A10: 0 | D10: 0 | F10: 0
A11: =C51 -> 5 | D11: =C50 -> 13 | F11: =C58 -> 
A12: =A9-A10-A11 -> 26 | D12: =D9-D10-D11 -> 18 | F12: =F9-F10-F11 -> 
B21: =NOW() -> 2024-04-15T17:19:04.790
B23: Heures de pluie | E23: Heures de soleil
A29: 2.5 | D29: 22.08333333
A30: 00:00:00 | D30: 00:00:00 | F30: 22.08333333
A31: =B48 -> 1.690972222 | D31: =C48 -> 5 | F31: 00:00:00
A32: =A29-A31 -> 19:25:00 | D32: =D29-D31 -> 17.08333333 | F32: =C56 -> 
F33: =F30-F32 -> 
E44: Vent fort au-dessus de
E45: 50km/h
B46: Heures Pluie | C46: H de soleil
A48: Total | B48: =Avril_2024!AL5 -> 1.690972222 | C48: =Avril_2024!BA5 -> 5
B49: Jours de pluie
A50: Soleil | C50: =COUNTIF(INDIRECT($A$1&"!BA11:BA71"),">4:00") -> 13
A51: Pluie | C51: =COUNTIF(INDIRECT($A$1&"!$Aj11:$Aj71"),">4") -> 5 | G51: 31
G52: 0
A53: Nb | G53: =C59 -> 
G54: =G51-G52-G53 -> 
A55: Vent
A56: Nb d'heures < 1.1 km/h | C56: =Avril_2024!#REF! -> 
A57: Nb de jours plus petit que 20km/h | C57: =SUM(#REF!) -> 
A58: Nb de jours entre 20 et 50 km/h | C58: =SUM(#REF!) -> 
A59: Nb de jours plus grand que 50km/h | C59: =SUM(#REF!) -> 

Sheet Console
A1: 17:22:00
B3: Températures Humidité de l'air Vitesse du vent Chaleur solaire = T°+2°
B8: Maxi
B13: Température ressentie Point de rosée =
B14: Si + de 21° possible Relevés du : Du lever au coucher du soleil :
B16: Pôle culturel des Floralies Statistiques
H17: Levé | I17: 07:36:00
H18: Couché | I18: 20:40:00
H19: Soleil | I19: =I18-I17 -> 13:04:00
H20: T° eau | I20: 12
H23: Bouées ou direct
H24: T° extérieure | I24: =LOOKUP(9^9,Relevés!B:B) -> 15.6 | J24: Egal | K24: ↔
H25: 14 | I25: =LOOKUP(9^9,Relevés!C:C) -> 65 | J25: Hausse | K25: ↗
H26: Point de Rosée | I26: =LOOKUP(9^9,Relevés!D:D) -> 8.3 | J26: Baisse | K26: ↘
B27: Journée Mois Année | H27: T° ressentie | I27: =LOOKUP(9^9,Relevés!E:E) -> 14.1
B28: Haute Matinée Basse de l'eau Haute Après-midi Basse | H28: Vent | I28: =LOOKUP(9^9,Relevés!G:G) -> 9.4
B29: Pression : | H29: Pression | I29: =LOOKUP(9^9,Relevés!H:H) -> 1021.1 | J29: =IF(INDEX(Relevés!G:G,LARGE(IF(ISNUMBER(Relevés!G:G),ROW(Relevés!G:G)),2))>LOOKUP(9^9,Relevés!G:G),"↘",IF(INDEX(Relevés!G:G,LARGE(IF(ISNUMBER(Relevés!G:G),ROW(Relevés!G:G)),2))=LOOKUP(9^9,Relevés!G:G),"↔","↗")) -> ↔
H30: Soleil | I30: =Relevés!W1450 -> 310
H31: Vent Maxi | I31: =Avril_2024!AC2 -> 21.6 | J31: Ý
C32: =DAY(TODAY()) -> 15
B33: =NOW() -> 2024-04-15T17:19:04.790
A37: Site | B37: http://meteofloralies.free.fr
A38: T° | B38: 18
A39: Pré | B39: https://www.meteoetradar.com/meteo/la-tranche-sur-mer/4114427
A43: <

Sheet Graphiques
B1: Dernière mise à jour le : | D1: =NOW() -> 2024-04-15T17:19:04.790
E2: ²
B3: Température extérieure | F3: Température Mini et Maxi extérieure
D4: ²
B5: Précipitations Humidité actuelle Mini … Maxi …
F6: Précipitations
B9: Vitesse du vent de la journée
B11: Vitesse du vent | D11: 1 | E11: 1 | F11: Vitesse du vent
F17: Nombre d'heures de soleil
B18: Chaleur solaire = T° Extérieure + 2°

Sheet Marées 2024
C1: Haute | D1: Basse | E1: Coef
B2: Matin | C2: =INDIRECT("C"&(Console!$C$32*2+3)) -> 11:23:00 | D2: =INDIRECT("D"&(Console!$C$32*2+3)) -> 04:19:00 | E2: =INDIRECT("E"&(Console!$C$32*2+3)) -> 42
B3: Soir | C3: =INDIRECT("C"&(Console!$C$32*2+4)) -> ***** | D3: =INDIRECT("D"&(Console!$C$32*2+4)) -> 16:40:00 | E3: =INDIRECT("E"&(Console!$C$32*2+4)) -> *****
A4: Janvier | B4: =DAY(TODAY()) -> 15 | C4: Haute | D4: Basse | E4: Coefficient
A5: 1 | B5: Matin | C5: 09:06:00 | D5: 03:40:00 | E5: 47
B6: Soir | C6: 22:31:00 | D6: 16:02:00 | E6: 41
A7: 2 | B7: Matin | C7: 11:50:00 | D7: 04:34:00 | E7: 36
B8: Soir | C8: ***** | D8: 17:06:00 | E8: *****
A9: 3 | B9: Matin | C9: 00:38:00 | D9: 05:47:00 | E9: 33
B10: Soir | C10: 13:34:00 | D10: 18:37:00 | E10: 33
A11: 4 | B11: Matin | C11: 01:54:00 | D11: 07:23:00 | E11: 38
B12: Soir | C12: 14:42:00 | D12: 20:07:00 | E12: 45
A13: 5 | B13: Matin | C13: 02:56:00 | D13: 08:41:00 | E13: 54
B14: Soir | C14: 13:35:00 | D14: 21:12:00 | E14: 64
A15: 6 | B15: Matin | C15: 03:48:00 | D15: 09:40:00 | E15: 73
B16: Soir | C16: 16:20:00 | D16: 22:05:00 | E16: 83
A17: 7 | B17: Matin | C17: 04:34:00 | D17: 10:30:00 | E17: 91
B18: Soir | C18: 17:00:00 | D18: 22:53:00 | E18: 99
A19: 8 | B19: Matin | C19: 05:16:00 | D19: 11:17:00 | E19: 105
B20: Soir | C20: 17:37:00 | D20: 23:39:00 | E20: 109
A21: 9 | B21: Matin | C21: 05:54:00 | D21: 12:01:00 | E21: 112
B22: Soir | C22: 18:10:00 | D22: ***** | E22: 113
A23: 10 | B23: Matin | C23: 06:30:00 | D23: 00:23:00 | E23: 112
B24: Soir | C24: 18:41:00 | D24: 12:43:00 | E24: 109
A25: 11 | B25: Matin | C25: 07:04:00 | D25: 01:17:00 | E25: 105
B26: Soir | C26: 19:09:00 | D26: 13:26:00 | E26: 99
A27: 12 | B27: Matin | C27: 07:37:00 | D27: 01:51:00 | E27: 93
B28: Soir | C28: 19:36:00 | D28: 14:09:00 | E28: 85
A29: 13 | B29: Matin | C29: 08:10:00 | D29: 02:37:00 | E29: 76
B30: Soir | C30: 20:05:00 | D30: 14:53:00 | E30: 67
A31: 14 | B31: Matin | C31: 08:46:00 | D31: 03:25:00 | E31: 58
B32: Soir | C32: 20:41:00 | D32: 15:41:00 | E32: 49
A33: 15 | B33: Matin | C33: 11:23:00 | D33: 04:19:00 | E33: 42
B34: Soir | C34: ***** | D34: 16:40:00 | E34: *****
A35: 16 | B35: Matin | C35: 00:14:00 | D35: 05:25:00 | E35: 35
B36: Soir | C36: 13:09:00 | D36: 17:53:00 | E36: 31
A37: 17 | B37: Matin | C37: 01:36:00 | D37: 06:49:00 | E37: 30
B38: Soir | C38: 14:15:00 | D38: 19:20:00 | E38: 32
A39: 18 | B39: Matin | C39: 02:36:00 | D39: 08:10:00 | E39: 36
B40: Soir | C40: 15:04:00 | D40: 20:32:00 | E40: 41
A41: 19 | B41: Matin | C41: 03:21:00 | D41: 09:08:00 | E41: 47
B42: Soir | C42: 15:40:00 | D42: 21:23:00 | E42: 52
A43: 20 | B43: Matin | C43: 03:54:00 | D43: 09:51:00 | E43: 58
B44: Soir | C44: 16:07:00 | D44: 22:04:00 | E44: 62
A45: 21 | B45: Matin | C45: 04:19:00 | D45: 10:28:00 | E45: 67
B46: Soir | C46: 16:31:00 | D46: 22:40:00 | E46: 17
A47: 22 | B47: Matin | C47: 04:43:00 | D47: 11:01:00 | E47: 75
B48: Soir | C48: 16:55:00 | D48: 23:13:00 | E48: 78
A49: 23 | B49: Matin | C49: 05:07:00 | D49: 11:33:00 | E49: 80
B50: Soir | C50: 17:20:00 | D50: 23:45:00 | E50: 82
A51: 24 | B51: Matin | C51: 05:33:00 | D51: 12:03:00 | E51: 83
B52: Soir | C52: 17:47:00 | D52: ***** | E52: 84
A53: 25 | B53: Matin | C53: 06:00:00 | D53: 00:18:00 | E53: 84
B54: Soir | C54: 18:14:00 | D54: 12:34:00 | E54: 84
A55: 26 | B55: Matin | C55: 06:28:00 | D55: 00:49:00 | E55: 82
B56: Soir | C56: 18:44:00 | D56: 13:05:00 | E56: 80
A57: 27 | B57: Matin | C57: 06:59:00 | D57: 01:23:00 | E57: 77
B58: Soir | C58: 19:18:00 | D58: 13:38:00 | E58: 74
A59: 28 | B59: Matin | C59: 07:33:00 | D59: 01:59:00 | E59: 70
B60: Soir | C60: 19:57:00 | D60: 14:15:00 | E60: 65
A61: 29 | B61: Matin | C61: 08:15:00 | D61: 02:39:00 | E61: 60
B62: Soir | C62: 20:54:00 | D62: 14:58:00 | E62: 55
A63: 30 | B63: Matin | C63: 09:27:00 | D63: 03:26:00 | E63: 49
B64: Soir | C64: 22:45:00 | D64: 15:50:00 | E64: 45
A65: 31 | B65: Matin
B66: Soir
